Workbook

Sheet Budget Template
A1: Award No. | B1: 502###
A2: PSC Rate | B2: 13% | C2: =VLOOKUP(B2,'BL & PSC Rates'!A$2:B$8,2,FALSE) -> Please select a different rate when a waiver has been requested and approved by the TREASURER, if the applicable rate is not in the list, go to the sheet "BL & PSC Rates" and enter the rate in cell A4
A3: Project Number | B3: 108###
A4: XB Symbol
A5: Budget Version | C5: Please see the "Result-based budgeting guide", page 38 paragrah 99 | P5: =P19+P19*0.01 -> 1500000
A6: Is agreement subject to the 1% UN Coordination Levy? | C6: Yes
A8: Output | B8: Activity | C8: CPO / GP | D8: P&B Output | E8: Flagship Programme(s) | F8: Inputs | G8: Type | H8: Unit rate | J8: Quantity | K8: =K11 -> 2024 | L8: =L11 -> 2025 | M8: 2026 | N8: 2027 | O8: 2028 | P8: Total | R8: =R11 -> 2024 | S8: =S11 -> 2025 | T8: 2026 | U8: 2027 | V8: 2028 | W8: Total | Y8: =Y11 -> 2024 | Z8: =Z11 -> 2025 | AA8: 2026 | AB8: 2027 | AC8: 2028 | AD8: Total | AF8: =AF11 -> 2024 | AG8: =AG11 -> 2025 | AH8: 2026 | AI8: 2027 | AJ8: 2028 | AK8: Total
F9: (Assumptions) | G9: Resource type* (IRIS)
K10: Working (Draft) Budget | R10: Current/Baselined Budget | Y10: Comparison (Working Budget - Current/Baselined Budget) | AF10: Budget to be entered in OGA
A11: Task Number | K11: 2024 | L11: =K11+1 -> 2025 | M11: =L11+1 -> 2026 | N11: 2027 | O11: 2028 | P11: Total | R11: =K11 -> 2024 | S11: =L11 -> 2025 | T11: =M11 -> 2026 | U11: =N11 -> 2027 | V11: 2028 | W11: Total | Y11: =R11 -> 2024 | Z11: =S11 -> 2025 | AA11: =T11 -> 2026 | AB11: =U11 -> 2027 | AC11: 2028 | AD11: Total | AF11: =Y11 -> 2024 | AG11: =Z11 -> 2025 | AH11: =AA11 -> 2026 | AI11: =AB11 -> 2027 | AJ11: 2028 | AK11: Total
A12: Total Project Level | K12: =SUM(K13:K18) -> 805526.5149 | L12: =SUM(L13:L18) -> 679622 | M12: =SUM(M13:M18) -> 0 | N12: =SUM(N13:N18) -> 0 | O12: =SUM(O13:O18) -> 0 | P12: =SUM(K12:O12) -> 1485148.515 | R12: =SUM(R13:R18) -> 0 | S12: =SUM(S13:S18) -> 0 | T12: =SUM(T13:T18) -> 0 | U12: =SUM(U13:U18) -> 0 | V12: =SUM(V13:V18) -> 0 | W12: =SUM(R12:V12) -> 0 | Y12: =SUM(Y13:Y18) -> 805526.5149 | Z12: =SUM(Z13:Z18) -> 679622 | AA12: =SUM(AA13:AA18) -> 6652.5 | AB12: =SUM(AB13:AB18) -> 1487.5 | AC12: =SUM(AC13:AC18) -> 0 | AD12: =SUM(Y12:AC12) -> 1493288.515 | AF12: =SUM(AF13:AF18) -> 805526.5149 | AG12: =SUM(AG13:AG18) -> 679622 | AH12: =SUM(AH13:AH18) -> 0 | AI12: =SUM(AI13:AI18) -> 0 | AJ12: =SUM(AJ13:AJ18) -> 0 | AK12: =SUM(AF12:AJ12) -> 1485148.515
A13: =A23 -> 01: Prevention of labour exploitation/human trafficking | K13: =K23 -> 150000 | L13: =L23 -> 150000 | M13: 0 | N13: =N23 -> 0 | O13: 0 | P13: 300000 | R13: =R23 -> 0 | S13: =S23 -> 0 | T13: 0 | U13: =U23 -> 0 | V13: 0 | W13: 0 | Y13: =Y23 -> 150000 | Z13: =Z23 -> 150000 | AA13: 0 | AB13: =AB23 -> 0 | AC13: 0 | AD13: =SUM(Y13:AC13) -> 300000 | AF13: =AF23 -> 150000 | AG13: =AG23 -> 150000 | AH13: 0 | AI13: =AI23 -> 0 | AJ13: 0 | AK13: =SUM(AF13:AJ13) -> 300000
A14: =A37 -> 02: Enterprise Development | K14: =K37 -> 245000 | L14: =L37 -> 100000 | M14: =M37 -> 0 | N14: =N37 -> 0 | O14: =O37 -> 0 | P14: =SUM(K14:O14) -> 345000 | R14: =R37 -> 0 | S14: =S37 -> 0 | T14: =T37 -> 0 | U14: =U37 -> 0 | V14: =V37 -> 0 | W14: =SUM(R14:V14) -> 0 | Y14: =Y37 -> 245000 | Z14: =Z37 -> 100000 | AA14: =AA37 -> 0 | AB14: =AB37 -> 0 | AC14: =AC37 -> 0 | AD14: =SUM(Y14:AC14) -> 345000 | AF14: =AF37 -> 245000 | AG14: =AG37 -> 100000 | AH14: =AH37 -> 0 | AI14: =AI37 -> 0 | AJ14: =AJ37 -> 0 | AK14: =SUM(AF14:AJ14) -> 345000
A15: =A48 -> 03: Introduction of new services of social partners for enterprises and workers | K15: =K48 -> 150000 | L15: =L48 -> 150000 | M15: 0 | N15: =N48 -> 0 | O15: 0 | P15: 300000 | R15: =R48 -> 0 | S15: =S48 -> 0 | T15: 0 | U15: =U48 -> 0 | V15: 0 | W15: 0 | Y15: =Y48 -> 150000 | Z15: =Z48 -> 150000 | AA15: 0 | AB15: =AB48 -> 0 | AC15: 0 | AD15: =SUM(Y15:AC15) -> 300000 | AF15: =AF48 -> 150000 | AG15: =AG48 -> 150000 | AH15: 0 | AI15: =AI48 -> 0 | AJ15: 0 | AK15: =SUM(AF15:AJ15) -> 300000
A16: =A71 -> 10: Project Management & Oversight | K16: =K71 -> 167854.5149 | L16: =L71 -> 175950 | M16: 0 | N16: =N71 -> 0 | O16: 0 | P16: 343804.5149 | R16: =R71 -> 0 | S16: =S71 -> 0 | T16: 0 | U16: =U71 -> 0 | V16: 0 | W16: 0 | Y16: =Y71 -> 167854.5149 | Z16: =Z71 -> 175950 | AA16: 6652.5 | AB16: =AB71 -> 1487.5 | AC16: 0 | AD16: =SUM(Y16:AC16) -> 351944.5149 | AF16: =AF71 -> 167854.5149 | AG16: =AG71 -> 175950 | AH16: 0 | AI16: =AI71 -> 0 | AJ16: 0 | AK16: =SUM(AF16:AJ16) -> 343804.5149
A17: =A121 -> 99: Programme Support Costs and Provision for Contingency | K17: =K121 -> 92672 | L17: =L121 -> 103672 | M17: 0 | N17: =N121 -> 0 | O17: 0 | P17: 196344 | R17: =R121 -> 0 | S17: =S121 -> 0 | T17: 0 | U17: =U121 -> 0 | V17: 0 | W17: 0 | Y17: =Y121 -> 92672 | Z17: =Z121 -> 103672 | AA17: 0 | AB17: =AB121 -> 0 | AC17: 0 | AD17: 196344 | AF17: =AF121 -> 92672 | AG17: =AG121 -> 103672 | AH17: 0 | AI17: =AI121 -> 0 | AJ17: 0 | AK17: 196344
W18: 0 | AD18: 0 | AK18: 0
A19: Total Project Level | K19: =K23+K37+K48+K71+K121 -> 805526.5149 | L19: =L23+L37+L48+L71+L121 -> 679622 | M19: =M23+M37+M48+M71+M121 -> 0 | N19: =N23+N37+N48+N71+N121 -> 0 | O19: =O23+O37+O48+O71+O121 -> 0 | P19: =SUM(K19:O19) -> 1485148.515 | R19: =R23+R37+R48+#REF!+#REF!+#REF!+#REF!+#REF!+#REF!+R71+R121 ->  | S19: =S23+S37+S48+#REF!+#REF!+#REF!+#REF!+#REF!+#REF!+S71+S121 ->  | T19: =T23+T37+T48+#REF!+#REF!+#REF!+#REF!+#REF!+#REF!+T71+T121 ->  | U19: =U23+U37+U48+#REF!+#REF!+#REF!+#REF!+#REF!+#REF!+U71+U121 ->  | V19: =V23+V37+V48+#REF!+#REF!+#REF!+#REF!+#REF!+#REF!+V71+V121 ->  | W19: =SUM(R19:V19) ->  | Y19: =Y23+Y37+Y48+#REF!+#REF!+#REF!+#REF!+#REF!+#REF!+Y71+Y121 ->  | Z19: =Z23+Z37+Z48+#REF!+#REF!+#REF!+#REF!+#REF!+#REF!+Z71+Z121 ->  | AA19: =AA23+AA37+AA48+#REF!+#REF!+#REF!+#REF!+#REF!+#REF!+AA71+AA121 ->  | AB19: =AB23+AB37+AB48+#REF!+#REF!+#REF!+#REF!+#REF!+#REF!+AB71+AB121 ->  | AC19: =AC23+AC37+AC48+#REF!+#REF!+#REF!+#REF!+#REF!+#REF!+AC71+AC121 ->  | AD19: =SUM(Y19:AC19) ->  | AE19: =AE23+#REF!+#REF!+#REF!+AE121 ->  | AF19: =AF23+AF37+AF48+#REF!+#REF!+#REF!+#REF!+#REF!+#REF!+AF71+AF121 ->  | AG19: =AG23+AG37+AG48+#REF!+#REF!+#REF!+#REF!+#REF!+#REF!+AG71+AG121 ->  | AH19: =AH23+AH37+AH48+#REF!+#REF!+#REF!+#REF!+#REF!+#REF!+AH71+AH121 ->  | AI19: =AI23+AI37+AI48+#REF!+#REF!+#REF!+#REF!+#REF!+#REF!+AI71+AI121 ->  | AJ19: =AJ23+AJ37+AJ48+#REF!+#REF!+#REF!+#REF!+#REF!+#REF!+AJ71+AJ121 ->  | AK19: =AK23+AK37+AK48+#REF!+#REF!+#REF!+#REF!+#REF!+#REF!+AK71+AK121 -> 
A21: Output | B21: Activity | C21: CPO / GP | D21: P&B Output | E21: Flagship Programme(s) | F21: Inputs | G21: Type | H21: Unit rate | J21: Quantity | K21: =K11 -> 2024 | L21: =L11 -> 2025 | M21: =M11 -> 2026 | N21: =N11 -> 2027 | O21: =O11 -> 2028 | P21: Total | R21: =R11 -> 2024 | S21: =S11 -> 2025 | T21: =T11 -> 2026 | U21: =U11 -> 2027 | V21: =V11 -> 2028 | W21: Total | Y21: =Y11 -> 2024 | Z21: =Z11 -> 2025 | AA21: =AA11 -> 2026 | AB21: =AB11 -> 2027 | AC21: =AC11 -> 2028 | AD21: Total | AF21: =AF11 -> 2024 | AG21: =AG11 -> 2025 | AH21: =AH11 -> 2026 | AI21: =AI11 -> 2027 | AJ21: =AJ11 -> 2028 | AK21: Total
F22: (Assumptions) | G22: Resource type* (IRIS)
A23: 01: Prevention of labour exploitation/human trafficking | K23: =SUM(K24:K36)/2 -> 150000 | L23: =SUM(L24:L36)/2 -> 150000 | M23: =SUM(M24:M36)/2 -> 0 | N23: =SUM(N24:N36)/2 -> 0 | O23: =SUM(O24:O36)/2 -> 0 | P23: =SUM(K23:O23) -> 300000 | Y23: =SUM(Y24:Y36)/2 -> 150000 | Z23: =SUM(Z24:Z36)/2 -> 150000 | AA23: =SUM(AA24:AA36)/2 -> 0 | AB23: =SUM(AB24:AB36)/2 -> 0 | AC23: =SUM(AC24:AC36)/2 -> 0 | AD23: =SUM(Y23:AC23) -> 300000 | AF23: =K23 -> 150000 | AG23: =L23 -> 150000 | AH23: =M23 -> 0 | AI23: =N23 -> 0 | AJ23: 0 | AK23: =SUM(AF23:AJ23) -> 300000
A24: DO NOT DELETE
A25: 01.01 Improved prevention of IDPs and refugees from labour exploitation and human trafficking. | K25: =SUM(K26:K35) -> 150000 | L25: =SUM(L26:L35) -> 150000 | M25: =SUM(M26:M35) -> 0 | N25: =SUM(N26:N35) -> 0 | O25: =SUM(O26:O35) -> 0 | P25: =SUM(K25:O25) -> 300000 | Y25: =SUM(Y26:Y35) -> 150000 | Z25: =SUM(Z26:Z35) -> 150000 | AA25: =SUM(AA26:AA35) -> 0 | AB25: =SUM(AB26:AB35) -> 0 | AC25: =SUM(AC26:AC35) -> 0 | AD25: =SUM(Y25:AC25) -> 300000 | AF25: =IF(COUNT(AF26:AF35)=0,"",K25) -> 150000 | AG25: =IF(COUNT(AG26:AG35)=0,"",L25) -> 150000 | AH25: =IF(COUNT(AH26:AH35)=0,"",M25) ->  | AI25: =IF(COUNT(AI26:AI35)=0,"",N25) ->  | AJ25: =IF(COUNT(AJ26:AJ35)=0,"",O25) ->  | AK25: =IF(COUNT(AF25:AJ25)=0,"",P25) -> 300000
F26: DO NOT DELETE LINE
B27: 01.01.01 - Improved availability of data | C27: UKR132 | D27: 3.4 | E27: None | P27: =SUM(K27:O27) -> 0 | Y27: =K27-R27 -> 0 | Z27: 0 | AA27: 0 | AB27: 0 | AC27: 0 | AD27: =SUM(Y27:AC27) -> 0 | AF27: =IF(K27=R27,"",IF(K27>R27,K27,-K27)) ->  | AK27: =IF(COUNT(AF27:AJ27)=0,"",P27) -> 
P28: =SUM(K28:O28) -> 0 | Y28: 0 | Z28: 0 | AA28: 0 | AB28: 0 | AC28: 0 | AD28: 0
P29: =SUM(K29:O29) -> 0 | Y29: 0 | Z29: 0 | AA29: 0 | AB29: 0 | AC29: 0 | AD29: 0
B30: 01.01.02 - Improved access to information | C30: UKR132 | D30: 3.4 | E30: None | F30: Service contract | G30: 531115_SUBCONTRACTS_GRL | K30: 75000 | L30: 75000 | P30: =SUM(K30:O30) -> 150000 | Y30: 75000 | Z30: 75000 | AA30: 0 | AB30: 0 | AC30: 0 | AD30: 150000 | AF30: 75000 | AG30: 75000 | AK30: 150000
P31: =SUM(K31:O31) -> 0 | Y31: =K31-R31 -> 0 | Z31: =L31-S31 -> 0 | AA31: =M31-T31 -> 0 | AB31: =N31-U31 -> 0 | AC31: =O31-V31 -> 0 | AD31: =SUM(Y31:AC31) -> 0 | AF31: =IF(K31=R31,"",IF(K31>R31,K31,-K31)) ->  | AK31: =IF(COUNT(AF31:AJ31)=0,"",P31) -> 
P32: =SUM(K32:O32) -> 0 | Y32: 0 | Z32: 0 | AA32: 0 | AB32: 0 | AC32: 0 | AD32: 0
B33: 01.01.03 - Improved regulatory framework | C33: UKR132 | D33: 3.4 | E33: None | F33: Service contract | G33: 531115_SUBCONTRACTS_GRL | K33: 75000 | L33: 75000 | P33: 150000 | Y33: 75000 | Z33: 75000 | AA33: 0 | AB33: 0 | AC33: 0 | AD33: 150000 | AF33: 75000 | AG33: 75000 | AK33: 150000
P34: 0 | Y34: 0 | Z34: 0 | AA34: 0 | AB34: 0 | AC34: 0 | AD34: 0
P35: 0 | Y35: 0 | Z35: 0 | AA35: 0 | AB35: 0 | AC35: 0 | AD35: 0
A36: DO NOT DELETE
A37: 02: Enterprise Development | K37: =SUM(K38:K47)/2 -> 245000 | L37: =SUM(L38:L47)/2 -> 100000 | M37: =SUM(M38:M47)/2 -> 0 | N37: =SUM(N38:N47)/2 -> 0 | O37: =SUM(O38:O47)/2 -> 0 | P37: =SUM(K37:O37) -> 345000 | Y37: =SUM(Y38:Y47)/2 -> 245000 | Z37: =SUM(Z38:Z47)/2 -> 100000 | AA37: =SUM(AA38:AA47)/2 -> 0 | AB37: =SUM(AB38:AB47)/2 -> 0 | AC37: =SUM(AC38:AC47)/2 -> 0 | AD37: =SUM(Y37:AC37) -> 345000 | AF37: =K37 -> 245000 | AG37: =L37 -> 100000 | AH37: =M37 -> 0 | AI37: =N37 -> 0 | AJ37: =O37 -> 0 | AK37: =SUM(AF37:AJ37) -> 345000
A38: DO NOT DELETE
A39: 02.01: New start-ups established, and existing enterprises resumed operations | K39: =SUM(K40:K46) -> 245000 | L39: =SUM(L40:L46) -> 100000 | M39: =SUM(M40:M46) -> 0 | N39: =SUM(N40:N46) -> 0 | O39: =SUM(O40:O46) -> 0 | P39: =SUM(K39:O39) -> 345000 | Y39: =SUM(Y40:Y46) -> 245000 | Z39: =SUM(Z40:Z46) -> 100000 | AA39: =SUM(AA40:AA46) -> 0 | AB39: =SUM(AB40:AB46) -> 0 | AC39: =SUM(AC40:AC46) -> 0 | AD39: =SUM(Y39:AC39) -> 345000 | AF39: =IF(COUNT(AF40:AF46)=0,"",K39) -> 245000 | AG39: =IF(COUNT(AG40:AG46)=0,"",L39) -> 100000 | AH39: =IF(COUNT(AH40:AH46)=0,"",M39) ->  | AI39: =IF(COUNT(AI40:AI46)=0,"",N39) ->  | AJ39: =IF(COUNT(AJ40:AJ46)=0,"",O39) ->  | AK39: =IF(COUNT(AF39:AJ39)=0,"",P39) -> 345000
F40: DO NOT DELETE LINE
B41: 02.01.01 - Entrepreneurship development support – Training and Start-up grant support provided to at least 100 entrepreneurs, 25 grant beneficiaries provided with mentorship support. | C41: UKR102 | D41: 4.2 | E41: None | P41: =SUM(K41:O41) -> 0 | Y41: =K41-R41 -> 0 | Z41: =L41-S41 -> 0 | AA41: =M41-T41 -> 0 | AB41: =N41-U41 -> 0 | AC41: =O41-V41 -> 0 | AD41: =SUM(Y41:AC41) -> 0 | AF41: =IF(K41=R41,"",IF(K41>R41,K41,-K41)) ->  | AG41: =IF(L41=S41,"",IF(L41>S41,L41,-L41)) ->  | AH41: =IF(M41=T41,"",IF(M41>T41,M41,-M41)) ->  | AI41: =IF(N41=U41,"",IF(N41>U41,N41,-N41)) ->  | AJ41: =IF(O41=V41,"",IF(O41>V41,O41,-O41)) ->  | AK41: =IF(COUNT(AF41:AJ41)=0,"",P41) -> 
F42: Grants | G42: 582104_GRANTS | K42: 200000 | L42: 100000 | P42: =SUM(K42:O42) -> 300000 | Y42: =K42-R42 -> 200000 | Z42: 100000 | AA42: 0 | AB42: 0 | AC42: 0 | AD42: =SUM(Y42:AC42) -> 300000 | AF42: =IF(K42=R42,"",IF(K42>R42,K42,-K42)) -> 200000 | AG42: 100000 | AK42: =IF(COUNT(AF42:AJ42)=0,"",P42) -> 300000
P43: =SUM(K43:O43) -> 0 | Y43: 0 | Z43: 0 | AA43: 0 | AB43: 0 | AC43: 0 | AD43: 0
B44: 02.01.02 - Training of SIYB trainers – training at least 15 new SIYB trainers. | C44: UKR102 | D44: 4.2 | E44: None | P44: =SUM(K44:O44) -> 0 | Y44: 0 | Z44: 0 | AA44: 0 | AB44: 0 | AC44: 0 | AD44: 0
F45: Seminar costs | G45: 581100_SEMINARS_GRAL | K45: 45000 | L45: 0 | P45: =SUM(K45:O45) -> 45000 | Y45: 45000 | Z45: 0 | AA45: 0 | AB45: 0 | AC45: 0 | AD45: 45000 | AF45: 45000 | AK45: 45000
P46: =SUM(K46:O46) -> 0 | Y46: 0 | Z46: 0 | AA46: 0 | AB46: 0 | AC46: 0 | AD46: 0
A47: DO NOT DELETE
A48: 03: Introduction of new services of social partners for enterprises and workers | K48: =SUM(K49:K69)/2 -> 150000 | L48: =SUM(L49:L69)/2 -> 150000 | M48: =SUM(M49:M69)/2 -> 0 | N48: =SUM(N49:N69)/2 -> 0 | O48: =SUM(O49:O69)/2 -> 0 | P48: =SUM(K48:O48) -> 300000 | Y48: =SUM(Y49:Y69)/2 -> 150000 | Z48: =SUM(Z49:Z69)/2 -> 150000 | AA48: =SUM(AA49:AA69)/2 -> 0 | AB48: =SUM(AB49:AB69)/2 -> 0 | AC48: =SUM(AC49:AC69)/2 -> 0 | AD48: =SUM(Y48:AC48) -> 300000 | AF48: =K48 -> 150000 | AG48: =L48 -> 150000 | AH48: =M48 -> 0 | AI48: =N48 -> 0 | AJ48: 0 | AK48: =SUM(AF48:AJ48) -> 300000
A49: DO NOT DELETE
A50: 03.01 - Supporting the EBMOs | K50: =SUM(K51:K57) -> 75000 | L50: =SUM(L51:L57) -> 75000 | M50: =SUM(M51:M57) -> 0 | N50: =SUM(N51:N57) -> 0 | O50: =SUM(O51:O57) -> 0 | P50: =SUM(K50:O50) -> 150000 | Y50: =SUM(Y51:Y57) -> 75000 | Z50: =SUM(Z51:Z57) -> 75000 | AA50: =SUM(AA51:AA57) -> 0 | AB50: =SUM(AB51:AB57) -> 0 | AC50: =SUM(AC51:AC57) -> 0 | AD50: =SUM(Y50:AC50) -> 150000 | AF50: =IF(COUNT(AF51:AF57)=0,"",K50) -> 75000 | AG50: =IF(COUNT(AG51:AG57)=0,"",L50) -> 75000 | AH50: =IF(COUNT(AH51:AH57)=0,"",M50) ->  | AI50: =IF(COUNT(AI51:AI57)=0,"",N50) ->  | AJ50: =IF(COUNT(AJ51:AJ57)=0,"",O50) ->  | AK50: =IF(COUNT(AF50:AJ50)=0,"",P50) -> 150000
F51: DO NOT DELETE LINE
B52: 03.01.01 - Develop two new services for EMBOs | C52: UKR801 | D52: 1.1 | E52: None | P52: =SUM(K52:O52) -> 0 | Y52: =K52-R52 -> 0 | Z52: =L52-S52 -> 0 | AA52: =M52-T52 -> 0 | AB52: =N52-U52 -> 0 | AC52: 0 | AD52: =SUM(Y52:AC52) -> 0 | AF52: =IF(K52=R52,"",IF(K52>R52,K52,-K52)) ->  | AG52: =IF(L52=S52,"",IF(L52>S52,L52,-L52)) ->  | AH52: =IF(M52=T52,"",IF(M52>T52,M52,-M52)) ->  | AI52: =IF(N52=U52,"",IF(N52>U52,N52,-N52)) ->  | AK52: =IF(COUNT(AF52:AJ52)=0,"",P52) -> 
F53: Service contract | G53: 531115_SUBCONTRACTS_GRL | K53: 37500 | L53: 37500 | P53: 75000 | Y53: 37500 | Z53: 37500 | AA53: 0 | AB53: 0 | AC53: 0 | AD53: 75000 | AF53: 37500 | AG53: 37500 | AK53: 75000
P54: 0 | Y54: 0 | Z54: 0 | AA54: 0 | AB54: 0 | AC54: 0 | AD54: 0
B55: 03.01.02 - Scaling up two existing services that have shown high demand | C55: UKR801 | D55: 1.1 | E55: None | P55: =SUM(K55:O55) -> 0 | Y55: =K55-R55 -> 0 | Z55: 0 | AA55: 0 | AB55: 0 | AC55: 0 | AD55: =SUM(Y55:AC55) -> 0 | AF55: =IF(K55=R55,"",IF(K55>R55,K55,-K55)) ->  | AK55: =IF(COUNT(AF55:AJ55)=0,"",P55) -> 
F56: Service contract | G56: 531115_SUBCONTRACTS_GRL | K56: 37500 | L56: 37500 | P56: 75000 | Y56: 37500 | Z56: 37500 | AA56: 0 | AB56: 0 | AC56: 0 | AD56: 75000 | AF56: 37500 | AG56: 37500 | AK56: 75000
P57: 0 | Y57: 0 | Z57: 0 | AA57: 0 | AB57: 0 | AC57: 0 | AD57: 0
A58: 03.02 - Supporting WOs at the sector and local levels | K58: =SUM(K59:K68) -> 75000 | L58: =SUM(L59:L68) -> 75000 | M58: =SUM(M59:M68) -> 0 | N58: =SUM(N59:N68) -> 0 | O58: =SUM(O59:O68) -> 0 | P58: 150000 | Y58: =SUM(Y59:Y68) -> 75000 | Z58: =SUM(Z59:Z68) -> 75000 | AA58: =SUM(AA59:AA68) -> 0 | AB58: =SUM(AB59:AB68) -> 0 | AC58: =SUM(AC59:AC68) -> 0 | AD58: =SUM(Y58:AC58) -> 150000 | AF58: =IF(COUNT(AF59:AF68)=0,"",K58) -> 75000 | AG58: =IF(COUNT(AG59:AG68)=0,"",L58) -> 75000 | AH58: =IF(COUNT(AH59:AH68)=0,"",M58) ->  | AI58: =IF(COUNT(AI59:AI68)=0,"",N58) ->  | AJ58: =IF(COUNT(AJ59:AJ68)=0,"",O58) ->  | AK58: =IF(COUNT(AF58:AJ58)=0,"",P58) -> 150000
F59: DO NOT DELETE LINE
B60: 03.02.01 - developing strategies and action plans to address issues related to safety and health of workers delivering essential services in the frontline regions | C60: UKR802 | D60: 1.2 | E60: None | P60: 0 | Y60: =K60-R60 -> 0 | Z60: =L60-S60 -> 0 | AA60: =M60-T60 -> 0 | AB60: =N60-U60 -> 0 | AC60: 0 | AD60: =SUM(Y60:AC60) -> 0 | AF60: =IF(K60=R60,"",IF(K60>R60,K60,-K60)) ->  | AG60: =IF(L60=S60,"",IF(L60>S60,L60,-L60)) ->  | AH60: =IF(M60=T60,"",IF(M60>T60,M60,-M60)) ->  | AI60: =IF(N60=U60,"",IF(N60>U60,N60,-N60)) -> 
F61: National consultant | G61: 514170_NAT_CONSULTANTS | K61: 25000 | L61: 25000 | P61: 50000 | Y61: 25000 | Z61: 25000 | AA61: 0 | AB61: 0 | AC61: 0 | AD61: 50000 | AF61: 25000 | AG61: 25000 | AK61: 50000
P62: 0 | Y62: 0 | Z62: 0 | AA62: 0 | AB62: 0 | AC62: 0 | AD62: 0
B63: 03.02.02 - setting up labour rights violation report centers, information and referral units for facilitating access to social protection and job vacancies for war veterans, workers incapacitated as a result of injuries and wounds sustained while at work | C63: UKR802 | D63: 1.2 | E63: None | P63: 0 | Y63: 0 | Z63: =L63-S63 -> 0 | AA63: 0 | AB63: =N63-U63 -> 0 | AC63: 0 | AD63: =SUM(Y63:AC63) -> 0 | AG63: =IF(L63=S63,"",IF(L63>S63,L63,-L63)) ->  | AI63: =IF(N63=U63,"",IF(N63>U63,N63,-N63)) -> 
F64: Service contract | G64: 531115_SUBCONTRACTS_GRL | K64: 25000 | L64: 25000 | P64: 50000 | Y64: 25000 | Z64: 25000 | AA64: 0 | AB64: 0 | AC64: 0 | AD64: 50000 | AF64: 25000 | AG64: 25000 | AK64: 50000
P65: 0 | Y65: 0 | Z65: 0 | AA65: 0 | AB65: 0 | AC65: 0 | AD65: 0
B66: 03.02.03 - strengthening the capacity of trade unions to produce policy proposals for social dialogue institutions to establish efficient mechanisms of grievance facilitation and labour dispute resolution | C66: UKR802 | D66: 1.2 | E66: None | P66: 0 | Y66: 0 | Z66: 0 | AA66: 0 | AB66: 0 | AC66: 0 | AD66: 0
F67: Service contract | G67: 531115_SUBCONTRACTS_GRL | K67: 25000 | L67: 25000 | P67: 50000 | Y67: 25000 | Z67: 25000 | AA67: 0 | AB67: 0 | AC67: 0 | AD67: 50000 | AF67: 25000 | AG67: 25000 | AK67: 50000
P68: 0 | Y68: 0 | Z68: 0 | AA68: 0 | AB68: 0 | AC68: 0 | AD68: 0
A69: DO NOT DELETE
A70: DO NOT DELETE
A71: 10: Project Management & Oversight | K71: =SUM(K72:K120)/2 -> 167854.5149 | L71: =SUM(L72:L120)/2 -> 175950 | M71: =SUM(M72:M120)/2 -> 0 | N71: =SUM(N72:N120)/2 -> 0 | O71: =SUM(O72:O120)/2 -> 0 | P71: =SUM(K71:O71) -> 343804.5149 | Y71: =SUM(Y72:Y120)/2 -> 167854.5149 | Z71: =SUM(Z72:Z120)/2 -> 175950 | AA71: =SUM(AA72:AA120)/2 -> 6652.5 | AB71: =SUM(AB72:AB120)/2 -> 1487.5 | AC71: =SUM(AC72:AC120)/2 -> 0 | AD71: =SUM(Y71:AC71) -> 351944.5149 | AF71: =K71 -> 167854.5149 | AG71: =L71 -> 175950 | AH71: =M71 -> 0 | AI71: =N71 -> 0 | AJ71: 0 | AK71: =SUM(AF71:AJ71) -> 343804.5149
A72: DO NOT DELETE
A73: 10.01 Staff Cost | K73: =SUM(K74:K82) -> 134095 | L73: =SUM(L74:L82) -> 108150 | M73: =SUM(M74:M82) -> 0 | N73: =SUM(N74:N82) -> 0 | O73: =SUM(O74:O82) -> 0 | P73: 242245 | Y73: =SUM(Y74:Y82) -> 134095 | Z73: =SUM(Z74:Z82) -> 108150 | AA73: =SUM(AA74:AA82) -> 1487.5 | AB73: =SUM(AB74:AB82) -> 1487.5 | AC73: =SUM(AC74:AC82) -> 0 | AD73: 245220 | AF73: =IF(COUNT(AF74:AF82)=0,"",K73) -> 134095 | AG73: =IF(COUNT(AG74:AG82)=0,"",L73) -> 108150 | AH73: =IF(COUNT(AH74:AH82)=0,"",M73) ->  | AI73: =IF(COUNT(AI74:AI82)=0,"",N73) ->  | AJ73: =IF(COUNT(AJ74:AJ82)=0,"",O73) ->  | AK73: =IF(COUNT(AF73:AJ73)=0,"",P73) -> 242245
F74: DO NOT DELETE LINE
B75: 10.01.01 - CTA | C75: UKR132 | D75: 3.4 | E75: None | F75: P5 expert cost including danger pay and RR (destination Budapest) | G75: 512100_ILO_EXPERTS_COSTS | H75: 20000 | I75: month | J75: 2 | K75: =H75*J75 -> 40000 | P75: =SUM(K75:O75) -> 40000 | Y75: =K75-R75 -> 40000 | Z75: =L75-S75 -> 0 | AB75: 0 | AC75: 0 | AD75: =SUM(Y75:AC75) -> 40000 | AF75: =IF(K75=R75,"",IF(K75>R75,K75,-K75)) -> 40000 | AG75: =IF(L75=S75,"",IF(L75>S75,L75,-L75)) ->  | AK75: =IF(COUNT(AF75:AJ75)=0,"",P75) -> 40000
G76: 544107_IT_SERVICES_COST | H76: 85 | I76: month | J76: 2 | K76: =F76*H76 -> 0 | L76: 0 | P76: =M76+N76 -> 0 | Y76: =K76-R76 -> 0 | Z76: =L76-S76 -> 0 | AA76: =(H76*J76)/2 -> 85 | AB76: =(H76*J76)/2 -> 85 | AC76: =O76-V76 -> 0 | AD76: =SUM(Y76:AC76) -> 170 | AF76: =IF(K76=R76,"",IF(K76>R76,K76,-K76)) ->  | AK76: =IF(COUNT(AF76:AJ76)=0,"",P76) -> 
B77: 10.01.02 - Project Coordinator at NOB level | C77: UKR102 | D77: 4.2 | E77: None | F77: NOB/1 supporting outcomes 2 and 3 | G77: 518115_NATIONAL_OFFICERS | H77: 4600 | I77: month | J77: 21 | K77: =H77*9 -> 41400 | L77: =H77*12 -> 55200 | P77: 96600 | Y77: 41400 | Z77: 55200 | AA77: 0 | AC77: 0 | AD77: 96600 | AF77: 41400 | AG77: 55200 | AK77: 96600
G78: 544107_IT_SERVICES_COST | H78: 85 | I78: month | J78: 21 | K78: =H78*9 -> 765 | L78: =H78*12 -> 1020 | P78: =SUM(K78:O78) -> 1785 | Y78: =K78-R78 -> 765 | Z78: =L78-S78 -> 1020 | AA78: =(H78*J78)/2 -> 892.5 | AB78: =(H78*J78)/2 -> 892.5 | AC78: =O78-V78 -> 0 | AD78: =SUM(Y78:AC78) -> 3570 | AF78: =IF(K78=R78,"",IF(K78>R78,K78,-K78)) -> 765 | AG78: 1020 | AK78: =IF(COUNT(AF78:AJ78)=0,"",P78) -> 1785
B79: 10.01.03 - Project assistant at G5 level | C79: UKR102 | D79: 4.2 | E79: None | F79: G5 assistant based in Kiev | G79: 518100_ADMIN_COST_AT_ACTUAL | H79: 2700 | I79: month | J79: 24 | K79: =H79*12 -> 32400 | L79: =H79*12 -> 32400 | P79: 64800 | Y79: 32400 | Z79: 32400 | AA79: 0 | AB79: 0 | AC79: 0 | AD79: 64800 | AF79: 32400 | AG79: 32400 | AK79: 64800
G80: 544107_IT_SERVICES_COST | H80: 85 | I80: month | J80: 24 | K80: =H80*12 -> 1020 | L80: =H80*12 -> 1020 | P80: =SUM(K80:O80) -> 2040 | Y80: =K80-R80 -> 1020 | Z80: =L80-S80 -> 1020 | AA80: 0 | AB80: 0 | AC80: =O80-V80 -> 0 | AD80: =SUM(Y80:AC80) -> 2040 | AF80: =IF(K80=R80,"",IF(K80>R80,K80,-K80)) -> 1020 | AG80: 1020 | AK80: =IF(COUNT(AF80:AJ80)=0,"",P80) -> 2040
B81: 10.01.04 - Project/Financial assistant at G6 level (part time 50) | C81: UKR102 | D81: 4.2 | E81: None | F81: G6 assistant based in Budapest | G81: 518100_ADMIN_COST_AT_ACTUAL | H81: 3000 | I81: month | J81: 12 | K81: =H81*6 -> 18000 | L81: =H81*6 -> 18000 | P81: 36000 | Y81: 18000 | Z81: 18000 | AA81: 0 | AB81: 0 | AC81: 0 | AD81: 36000 | AF81: 18000 | AG81: 18000 | AK81: 36000
G82: 544107_IT_SERVICES_COST | H82: 85 | I82: month | J82: 12 | K82: =H82*6 -> 510 | L82: =+H82*6 -> 510 | P82: =SUM(K82:O82) -> 1020 | Y82: =K82-R82 -> 510 | Z82: =L82-S82 -> 510 | AA82: =(H82*J82)/2 -> 510 | AB82: =(H82*J82)/2 -> 510 | AC82: =O82-V82 -> 0 | AD82: =SUM(Y82:AC82) -> 2040 | AF82: =IF(K82=R82,"",IF(K82>R82,K82,-K82)) -> 510 | AG82: 510 | AK82: =IF(COUNT(AF82:AJ82)=0,"",P82) -> 1020
A83: 10.02 Operational Cost | K83: =SUM(K84:K108) -> 33759.51485 | L83: =SUM(L84:L108) -> 37800 | M83: =SUM(M84:M108) -> 0 | N83: =SUM(N84:N108) -> 0 | O83: =SUM(O84:O108) -> 0 | P83: 71559.51485 | Y83: =SUM(Y84:Y108) -> 33759.51485 | Z83: =SUM(Z84:Z108) -> 37800 | AA83: =SUM(AA84:AA108) -> 900 | AB83: =SUM(AB84:AB108) -> 0 | AC83: =SUM(AC84:AC108) -> 0 | AD83: 72459.51485 | AF83: =IF(COUNT(AF84:AF108)=0,"",K83) -> 33759.51485 | AG83: =IF(COUNT(AG84:AG108)=0,"",L83) -> 37800 | AH83: =IF(COUNT(AH84:AH108)=0,"",M83) ->  | AI83: =IF(COUNT(AI84:AI108)=0,"",N83) ->  | AJ83: =IF(COUNT(AJ84:AJ108)=0,"",O83) ->  | AK83: 71559.51485
F84: DO NOT DELETE LINE
B85: 10.02.01 - Rental of premises & associated costs | C85: UKR102 | D85: 4.2 | E85: None | P85: 0 | Y85: =K85-R85 -> 0 | Z85: =L85-S85 -> 0 | AA85: =M85-T85 -> 0 | AB85: =N85-U85 -> 0 | AC85: 0 | AD85: 0 | AF85: =IF(K85=R85,"",IF(K85>R85,K85,-K85)) ->  | AG85: =IF(L85=S85,"",IF(L85>S85,L85,-L85)) ->  | AH85: =IF(M85=T85,"",IF(M85>T85,M85,-M85)) ->  | AI85: =IF(N85=U85,"",IF(N85>U85,N85,-N85)) -> 
F86: Premises in UNHCR building | G86: 541100_PREMISES_COST | H86: 2400 | I86: month | J86: 18 | K86: =H86*6 -> 14400 | L86: =H86*12 -> 28800 | P86: 43200 | Y86: =K86-R86 -> 14400 | Z86: =L86-S86 -> 28800 | AA86: =M86-T86 -> 0 | AB86: =N86-U86 -> 0 | AC86: 0 | AD86: =SUM(Y86:AC86) -> 43200 | AF86: =IF(K86=R86,"",IF(K86>R86,K86,-K86)) -> 14400 | AG86: =IF(L86=S86,"",IF(L86>S86,L86,-L86)) -> 28800 | AH86: =IF(M86=T86,"",IF(M86>T86,M86,-M86)) ->  | AI86: =IF(N86=U86,"",IF(N86>U86,N86,-N86)) ->  | AK86: =IF(COUNT(AF86:AJ86)=0,"",P86) -> 43200
P87: 0 | Y87: 0 | Z87: 0 | AA87: 0 | AB87: 0 | AC87: 0 | AD87: 0
B88: 10.02.02 - Office running costs | C88: UKR102 | D88: 4.2 | E88: None | P88: =SUM(K88:O88) -> 0 | Y88: =K88-R88 -> 0 | Z88: 0 | AA88: 0 | AB88: 0 | AC88: 0 | AD88: =SUM(Y88:AC88) -> 0 | AF88: =IF(K88=R88,"",IF(K88>R88,K88,-K88)) ->  | AK88: =IF(COUNT(AF88:AJ88)=0,"",P88) -> 
G89: 544100_MISCELLANEOUS_COST | L89: 0 | P89: =SUM(K89:O89) -> 0 | Y89: 0 | Z89: 0 | AA89: 900 | AB89: 0 | AC89: 0 | AD89: =SUM(Y89:AC89) -> 900 | AK89: =IF(COUNT(AF89:AJ89)=0,"",P89) -> 
P90: =SUM(K90:O90) -> 0 | Y90: 0 | Z90: 0 | AA90: 0 | AB90: 0 | AC90: 0 | AD90: =SUM(Y90:AC90) -> 0 | AK90: =IF(COUNT(AF90:AJ90)=0,"",P90) -> 
B91: 10.02.03 - Equipment | C91: UKR102 | D91: 4.2 | E91: None | P91: 0 | Y91: 0 | Z91: =L91-S91 -> 0 | AA91: =M91-T91 -> 0 | AB91: =N91-U91 -> 0 | AC91: 0 | AD91: =SUM(Y91:AC91) -> 0 | AG91: =IF(L91=S91,"",IF(L91>S91,L91,-L91)) ->  | AH91: =IF(M91=T91,"",IF(M91>T91,M91,-M91)) ->  | AI91: =IF(N91=U91,"",IF(N91>U91,N91,-N91)) ->  | AK91: =IF(COUNT(AF91:AJ91)=0,"",P91) -> 
G92: 561162_DATA_PROCESS_EQUIP | K92: 2000 | L92: 0 | P92: 2000 | Y92: 2000 | Z92: 0 | AA92: 0 | AB92: 0 | AC92: 0 | AD92: 2000 | AF92: 2000 | AK92: 2000
P93: 0 | Y93: 0 | Z93: 0 | AA93: 0 | AB93: 0 | AC93: 0 | AD93: 0
B94: 10.02.04 - Security | C94: UKR102 | D94: 4.2 | E94: None | P94: =SUM(K94:O94) -> 0 | Y94: 0 | Z94: 0 | AA94: 0 | AB94: 0 | AC94: 0 | AD94: =SUM(Y94:AC94) -> 0 | AK94: =IF(COUNT(AF94:AJ94)=0,"",P94) -> 
K95: 11359.51485 | L95: 0 | P95: 11359.51485 | Y95: 11359.51485 | Z95: 0 | AA95: 0 | AB95: 0 | AC95: 0 | AD95: 11359.51485 | AF95: 11359.51485 | AK95: 11359.51485
P96: 0 | Y96: 0 | Z96: 0 | AA96: 0 | AB96: 0 | AC96: 0 | AD96: 0
B97: 10.02.05 - Communication & visibility | C97: UKR102 | D97: 4.2 | E97: None | P97: 0 | Y97: 0 | Z97: 0 | AA97: 0 | AB97: 0 | AC97: 0 | AD97: 0
G98: 531115_SUBCONTRACTS_GRL | K98: 4000 | L98: 4000 | P98: 8000 | Y98: 4000 | Z98: 4000 | AA98: 0 | AB98: 0 | AC98: 0 | AD98: 8000 | AF98: 4000 | AG98: 4000 | AK98: 8000
P99: 0 | Y99: 0 | Z99: 0 | AA99: 0 | AB99: 0 | AC99: 0 | AD99: 0
B100: 10.02.06 - Travel | E100: None | P100: 0 | Y100: 0 | Z100: 0 | AA100: 0 | AB100: 0 | AC100: 0 | AD100: 0
P101: 0 | Y101: 0 | Z101: 0 | AA101: 0 | AB101: 0 | AC101: 0 | AD101: 0
P102: 0 | Y102: 0 | Z102: 0 | AA102: 0 | AB102: 0 | AC102: 0 | AD102: 0
B103: 10.02.07 - Car | E103: None | P103: 0 | Y103: 0 | Z103: 0 | AA103: 0 | AB103: 0 | AC103: 0 | AD103: 0
K104: 0 | L104: 0 | P104: 0 | Y104: 0 | Z104: 0 | AA104: 0 | AB104: 0 | AC104: 0 | AD104: 0
P105: 0 | Y105: 0 | Z105: 0 | AA105: 0 | AB105: 0 | AC105: 0 | AD105: 0
B106: 10.02.08 - Car running costs | C106: UKR102 | D106: 4.2 | E106: None | P106: 0 | Y106: 0 | Z106: 0 | AA106: 0 | AB106: 0 | AC106: 0 | AD106: 0
F107: Contribution to use of armed ILO vehicle | G107: 561164_VEHICLES | K107: 2000 | L107: 5000 | P107: 7000 | Y107: 2000 | Z107: 5000 | AA107: 0 | AB107: 0 | AC107: 0 | AD107: 7000 | AF107: 2000 | AG107: 5000 | AK107: 7000
P108: 0 | Y108: 0 | Z108: 0 | AA108: 0 | AB108: 0 | AC108: 0 | AD108: 0
A109: 10.03 Monitoring and Evaluation | K109: =SUM(K110:K119) -> 0 | L109: =SUM(L110:L119) -> 30000 | M109: =SUM(M110:M119) -> 0 | N109: =SUM(N110:N119) -> 0 | O109: =SUM(O110:O119) -> 0 | P109: =SUM(K109:O109) -> 30000 | Y109: =SUM(Y110:Y119) -> 0 | Z109: =SUM(Z110:Z119) -> 30000 | AA109: =SUM(AA110:AA119) -> 4265 | AB109: =SUM(AB110:AB119) -> 0 | AC109: =SUM(AC110:AC119) -> 0 | AD109: =SUM(Y109:AC109) -> 34265 | AF109: =IF(COUNT(AF110:AF119)=0,"",K109) ->  | AG109: =IF(COUNT(AG110:AG119)=0,"",L109) -> 30000 | AH109: =IF(COUNT(AH110:AH119)=0,"",M109) ->  | AI109: =IF(COUNT(AI110:AI119)=0,"",N109) ->  | AJ109: =IF(COUNT(AJ110:AJ119)=0,"",O109) ->  | AK109: 30000
F110: DO NOT DELETE LINE
B111: 10.03.01 - Monitoring | E111: None | P111: 0 | Y111: =K111-R111 -> 0 | Z111: =L111-S111 -> 0 | AA111: =M111-T111 -> 0 | AB111: =N111-U111 -> 0 | AC111: 0 | AD111: 0 | AF111: =IF(K111=R111,"",IF(K111>R111,K111,-K111)) ->  | AG111: =IF(L111=S111,"",IF(L111>S111,L111,-L111)) ->  | AH111: =IF(M111=T111,"",IF(M111>T111,M111,-M111)) ->  | AI111: =IF(N111=U111,"",IF(N111>U111,N111,-N111)) -> 
K112: 0 | L112: 0 | P112: 0 | Y112: 0 | Z112: 0 | AA112: 4265 | AB112: 0 | AC112: 0 | AD112: =SUM(Y112:AC112) -> 4265 | AK112: =IF(COUNT(AF112:AJ112)=0,"",P112) -> 
P113: 0 | Y113: 0 | Z113: 0 | AA113: 0 | AB113: 0 | AC113: 0 | AD113: 0
B114: 10.03.02 - Evaluation | C114: UKR102 | D114: 4.2 | E114: None | P114: =SUM(K114:O114) -> 0 | Y114: =K114-R114 -> 0 | Z114: 0 | AA114: 0 | AB114: 0 | AC114: 0 | AD114: =SUM(Y114:AC114) -> 0 | AF114: =IF(K114=R114,"",IF(K114>R114,K114,-K114)) ->  | AK114: =IF(COUNT(AF114:AJ114)=0,"",P114) -> 
G115: 531118_EVAL_CONTRACTS_COMPANY | K115: 0 | L115: 30000 | P115: =SUM(K115:O115) -> 30000 | Y115: =K115-R115 -> 0 | Z115: 30000 | AA115: 0 | AB115: 0 | AC115: 0 | AD115: =SUM(Y115:AC115) -> 30000 | AF115: =IF(K115=R115,"",IF(K115>R115,K115,-K115)) ->  | AG115: 30000 | AK115: =IF(COUNT(AF115:AJ115)=0,"",P115) -> 30000
P116: =SUM(K116:O116) -> 0 | Y116: =K116-R116 -> 0 | Z116: 0 | AA116: 0 | AB116: 0 | AC116: 0 | AD116: =SUM(Y116:AC116) -> 0 | AF116: =IF(K116=R116,"",IF(K116>R116,K116,-K116)) ->  | AK116: =IF(COUNT(AF116:AJ116)=0,"",P116) -> 
E117: None | P117: 0 | Y117: 0 | Z117: 0 | AA117: 0 | AB117: 0 | AC117: 0 | AD117: 0
P118: 0 | Y118: 0 | Z118: 0 | AA118: 0 | AB118: 0 | AC118: 0 | AD118: 0
P119: 0 | Y119: 0 | Z119: 0 | AA119: 0 | AB119: 0 | AC119: 0 | AD119: 0
A120: DO NOT DELETE
A121: 99: Programme Support Costs and Provision for Contingency | K121: =K122 -> 92672 | L121: =L122 -> 103672 | M121: 0 | N121: 0 | O121: 0 | P121: 196344 | Y121: =Y124+Y125 -> 92672 | Z121: =Z124+Z125 -> 103672 | AA121: =AA124+AA125 -> 0 | AB121: =AB124+AB125 -> 0 | AC121: =AC124+AC125 -> 0 | AD121: =SUM(Y121:AC121) -> 196344 | AF121: =K121 -> 92672 | AG121: =L121 -> 103672 | AH121: =M121 -> 0 | AI121: =N121 -> 0 | AJ121: 0 | AK121: =SUM(AF121:AJ121) -> 196344
A122: 99.01. PSC + PCI | K122: =SUM(K123:K125) -> 92672 | L122: =SUM(L123:L125) -> 103672 | M122: 0 | N122: =SUM(N123:N125) -> 0 | O122: 0 | P122: 196344 | Y122: =SUM(Y123:Y125) -> 92672 | Z122: 103672 | AA122: 0 | AB122: =SUM(AB123:AB125) -> 0 | AC122: 0 | AD122: 196344 | AF122: =IF(COUNT(AF123:AF125)=0,"",K122) -> 92672 | AG122: =IF(COUNT(AG123:AG125)=0,"",L122) -> 103672 | AH122: =IF(COUNT(AH123:AH125)=0,"",M122) ->  | AI122: =IF(COUNT(AI123:AI125)=0,"",N122) ->  | AK122: =SUM(AF122:AJ122) -> 196344
F123: DO NOT DELETE LINE
B124: =VLOOKUP(B2,'BL & PSC Rates'!A$2:D$8,3,FALSE) -> 13% | C124: UKR102 | D124: 4.2 | F124: 99.01.01 | G124: 593101_PROGRAMME_SUPPORT | K124: =IF($B2="13% & 0% DPTB",ROUNDUP(((K23+K37+K48+K71-SUMIF(G27:K120,"582105_DIRECT_PAYMENT_TO_BENEF",K27))*0.13),0),ROUNDUP(((K23+K37+K48+K71)*$B2),0)) -> 92672 | L124: =IF($B2="13% & 0% DPTB",ROUNDUP(((L23+L37+L48+L71-SUMIF(H27:L120,"582105_DIRECT_PAYMENT_TO_BENEF",L27))*0.13),0),ROUNDUP(((L23+L37+L48+L71)*$B2),0)) -> 74874 | M124: =IF($B2="13% & 0% DPTB",ROUNDUP(((M23+M37+M48+M71-SUMIF(I27:M120,"582105_DIRECT_PAYMENT_TO_BENEF",M27))*0.13),0),ROUNDUP(((M23+M37+M48+M71)*$B2),0)) -> 0 | N124: =IF($B2="13% & 0% DPTB",ROUNDUP(((N23+N37+N48+N71-SUMIF(J27:N120,"582105_DIRECT_PAYMENT_TO_BENEF",N27))*0.13),0),ROUNDUP(((N23+N37+N48+N71)*$B2),0)) -> 0 | O124: =IF($B2="13% & 0% DPTB",ROUNDUP(((O23+O37+O48+O71-SUMIF(K27:O120,"582105_DIRECT_PAYMENT_TO_BENEF",O27))*0.13),0),ROUNDUP(((O23+O37+O48+O71)*$B2),0)) -> 0 | P124: 167546 | Y124: =K124-R124 -> 92672 | Z124: =L124-S124 -> 74874 | AA124: =M124-T124 -> 0 | AB124: =N124-U124 -> 0 | AC124: 0 | AD124: =SUM(Y124:AC124) -> 167546 | AF124: =IF(K124=R124,"",IF(K124>R124,K124,-K124)) -> 92672 | AG124: 74874 | AI124: =IF(N124=U124,"",IF(N124>U124,N124,-N124)) ->  | AK124: 167546
B125: 99.01.02 | C125: UKR102 | D125: 4.2 | F125: 99.01.02 | G125: 597115_PROVISION_COST_INCREASE | L125: =ROUNDUP(((L23+L37+L48+L71)*0.05),0) -> 28798 | M125: 0 | N125: =ROUNDUP(((N23+N37+N48+N71)*0.05),0) -> 0 | O125: =ROUNDUP(((O23+O37+O48+O71)*0.05),0) -> 0 | P125: 28798 | Y125: 0 | Z125: 28798 | AA125: 0 | AB125: 0 | AC125: 0 | AD125: 28798 | AG125: 28798 | AK125: 28798
A126: TOTAL | K126: =K23+K37+K48+K71+K121 -> 805526.5149 | L126: =L23+L37+L48+L71+L121 -> 679622 | M126: =M23+M37+M48+M71+M121 -> 0 | N126: =N23+N37+N48+N71+N121 -> 0 | O126: =O23+O37+O48+O71+O121 -> 0 | P126: 1485148.515 | Y126: =Y23+Y37+Y48+#REF!+#REF!+#REF!+#REF!+#REF!+#REF!+Y71+Y121 ->  | Z126: =Z23+Z37+Z48+#REF!+#REF!+#REF!+#REF!+#REF!+#REF!+Z71+Z121 ->  | AA126: =AA23+AA37+AA48+#REF!+#REF!+#REF!+#REF!+#REF!+#REF!+AA71+AA121 ->  | AB126: =AB23+AB37+AB48+#REF!+#REF!+#REF!+#REF!+#REF!+#REF!+AB71+AB121 ->  | AC126: =AC23+AC37+AC48+#REF!+#REF!+#REF!+#REF!+#REF!+#REF!+AC71+AC121 ->  | AD126: =AD23+AD37+AD48+#REF!+#REF!+#REF!+#REF!+#REF!+#REF!+AD71+AD121 ->  | AF126: =AF23+AF37+AF48+#REF!+#REF!+#REF!+#REF!+#REF!+#REF!+AF71+AF121 ->  | AG126: =AG23+AG37+AG48+#REF!+#REF!+#REF!+#REF!+#REF!+#REF!+AG71+AG121 ->  | AH126: =AH23+AH37+AH48+#REF!+#REF!+#REF!+#REF!+#REF!+#REF!+AH71+AH121 ->  | AI126: =AI23+AI37+AI48+#REF!+#REF!+#REF!+#REF!+#REF!+#REF!+AI71+AI121 ->  | AJ126: =AJ23+AJ37+AJ48+#REF!+#REF!+#REF!+#REF!+#REF!+#REF!+AJ71+AJ121 -> 
A128: =IF(C6="Yes","This budget is subject to an 1% UN Coordination Levy in the amount of USD "&ROUND(P126*0.01,2),"It is indicated above, that this agreement is not subject to the 1% UN Coordination Levy") -> This budget is subject to an 1% UN Coordination Levy in the amount of USD 14851.49

Sheet Sheet1

Sheet BL & PSC Rates
A1: PSC Rate | D1: PSC BL
A2: 13% | B2: Please select a different rate when a waiver has been requested and approved by the TREASURER, if the applicable rate is not in the list, go to the sheet "BL & PSC Rates" and enter the rate in cell A4 | C2: 13% | D2: 068.001
A3: 13% & 0% DPTB | B3: 0% PSC for Direct Payment to Beneficiaries (Cash Transfers in response to COVID-19) and 13% on all other Expend Types | C3: 0.13 | D3: 068.001
A4: Another rate | B4: Waiver approval should be obtained before submitting budget to the donor, enter the approved rate in cell A4 in sheet "BL & PSC Rates" | C4: =A4 -> Another rate | D4: 067.001
A5: 5% | B5: Waiver approval should be obtained before submitting budget to the donor | C5: 5% | D5: 065.001
A6: 12% | B6: Waiver approval should be obtained before submitting budget to the donor | C6: 12% | D6: 064.001
A7: 7% | B7: Waiver approval should be obtained before submitting budget to the donor | C7: 7% | D7: 062.001
A8: 14% | B8: Waiver approval should be obtained before submitting budget to the donor | C8: 14% | D8: 061.001

Sheet Resource Type (budgeting)
A1: Resource Categories | B1: Resource Category Description | C1: Resource Type (budgeting) | D1: Resource Type Description
A2: 010_ILO_INTERNATIONAL_STAFF | B2: International Professional Staff | C2: 512100_ILO_EXPERTS_COSTS | D2: Standard Costs for International Experts
A3: 010_ILO_INTERNATIONAL_STAFF | B3: International Professional Staff | C3: 512124_DSA_ST_STAFF | D3: Daily Subsistence Allowance for Short-Term staff
A4: 010_ILO_INTERNATIONAL_STAFF | B4: International Professional Staff | C4: 515129_MISCELLANEOUS_PERSONNEL | D4: Miscellaneous Personnel Costs
A5: 010_ILO_INTERNATIONAL_STAFF | B5: International Professional Staff | C5: 518202_ILO_EXPERTS_SST | D5: Special Short-Term Contracts Int. Staff
A6: 015_INT_CONSULTANTS | B6: International Consultants | C6: 514175_INT_CONSULTANTS | D6: International Consultants
A7: 020_ILO_LOCAL_STAFF | B7: Local Support Staff | C7: 518100_ADMIN_COST_AT_ACTUAL | D7: Administrative support costs - salaries - Budget
A8: 020_ILO_LOCAL_STAFF | B8: Local Support Staff | C8: 518201_SST_CONTRACTS_GS_STAFF | D8: Special Short Term - Contracts / General Service Staff
A9: 024_NAT_OFFICERS | B9: National Professional Staff | C9: 518115_NATIONAL_OFFICERS | D9: National Officer based on Actuals
A10: 025_NAT_CONSULTANTS | B10: National Consultants | C10: 514170_NAT_CONSULTANTS | D10: National Consultants
A11: 030_OTHER_STAFF | B11: Consultants / National Professional Staff | C11: 514160_TECH_BACKSTOP_MONIT | D11: Technical Backstopping and Monitoring
A12: 030_OTHER_STAFF | B12: Consultants / National Professional Staff | C12: 514215_LABOUR_COSTS | D12: Labour Costs
A13: 030_OTHER_STAFF | B13: Consultants / National Professional Staff | C13: 515171_OP_ASSIST_EXP | D13: Operational Assistant Expert
A14: 030_OTHER_STAFF | B14: Consultants / National Professional Staff | C14: 515191_UN_VOLUNTEERS | D14: United Nations Volunteers
A15: 030_OTHER_STAFF | B15: Consultants / National Professional Staff | C15: 518203_DAILY_STAFF | D15: Daily Project Staff (International & National)
A16: 031_UNV | B16: United Nations Volunteers | C16: 515191_UN_VOLUNTEER | D16: United Nations Volunteers
A17: 040_TRAVEL_PROJECT_STAFF | B17: Travel Project Staff | C17: 701100_TRAVEL_PROJECT_STAFF | D17: Travel Project Staff
A18: 050_TRAVEL_NON_PROJECT_STAFF | B18: Travel Other Staff | C18: 701300_TRAVEL_OTHER_STAFF | D18: Travel non Project Staff
A19: 060_SUBCONTRACTS | B19: Subcontracts | C19: 531111_RESEARCH | D19: Research
A20: 060_SUBCONTRACTS | B20: Subcontracts | C20: 531114_HQ_REQ_EXT_PRINT_BIND | D20: Contractual work for printing and binding
A21: 060_SUBCONTRACTS | B21: Subcontracts | C21: 531115_SUBCONTRACTS_GRL | D21: Project Subcontracts
A22: 060_SUBCONTRACTS | B22: Subcontracts | C22: 531116_PUBLIC_INFO_CNTRACT | D22: Contracts of public information
A23: 060_SUBCONTRACTS | B23: Subcontracts | C23: 531117_EXT_DATA_PROCESS_CNTRCT | D23: Contractual work for processing of data
A24: 060_SUBCONTRACTS | B24: Subcontracts | C24: 531118_EVAL_CONTRACTS_COMPANY | D24: Evaluation Contracts for Companies
A25: 060_SUBCONTRACTS | B25: Subcontracts | C25: 531192_AUDIT_COSTS | D25: Audit costs
A26: 060_SUBCONTRACTS | B26: Subcontracts | C26: 531199_TECH_COOP_IMP_AGREEMENT | D26: Technical Cooperation Implementation Agreement
A27: 060_SUBCONTRACTS | B27: Subcontracts | C27: 531505_EXT_TRANSLATION_CONTRCT | D27: Contractual work for translation
A28: 060_SUBCONTRACTS | B28: Subcontracts | C28: 531515_OTHER_INDIVIDUAL_CONTR | D28: Other Indivudual Contracters
A29: 070_GRAL_OP_EXPENSES | B29: General Operating Expenses | C29: 541100_PREMISES_COST | D29: Premises rental and maintenance costs
A30: 070_GRAL_OP_EXPENSES | B30: General Operating Expenses | C30: 541114_BUILDING_REPAIRS | D30: Building repairs
A31: 070_GRAL_OP_EXPENSES | B31: General Operating Expenses | C31: 541116_UN_COMMON_SERV_CHARGES | D31: 541116_UN_COMMON_SERVICE
A32: 070_GRAL_OP_EXPENSES | B32: General Operating Expenses | C32: 541117_TC_RENT_GUARANTEE_DPT | D32: TC Rent Guarantee / Deposit
A33: 070_GRAL_OP_EXPENSES | B33: General Operating Expenses | C33: 541500_SECURITY COSTS | D33: Security expenses
A34: 070_GRAL_OP_EXPENSES | B34: General Operating Expenses | C34: 542100_OPERATION_AND_MAINT | D34: Hiring and maintenance of material
A35: 070_GRAL_OP_EXPENSES | B35: General Operating Expenses | C35: 544100_MISCELLANEOUS_COST | D35: Miscellaneous Cost - Budget
A36: 070_GRAL_OP_EXPENSES | B36: General Operating Expenses | C36: 544105_REVOLVING_FUND | D36: Revolving Fund
A37: 070_GRAL_OP_EXPENSES | B37: General Operating Expenses | C37: 544107_IT_SERVICES_COST | D37: Standardized IT costs for development cooperation projects
A38: 070_GRAL_OP_EXPENSES | B38: General Operating Expenses | C38: 544197_REPORTING_COSTS | D38: Reporting costs
A39: 070_GRAL_OP_EXPENSES | B39: General Operating Expenses | C39: 544200_INSURANCE_COST | D39: Insurance Cost
A40: 070_GRAL_OP_EXPENSES | B40: General Operating Expenses | C40: 551111_OFFICE SUPPLIES | D40: Stationery and Office Supplies
A41: 071_COMMUNICATIONS | B41: Communications | C41: 543100_COMMUNICATION_COST | D41: Communication Cost
A42: 080_FURNITURE_EQUIPMENT | B42: Furniture and Equipment | C42: 561101_OFFICE_FURNIT_EQUIP | D42: Office equipment - non expendable
A43: 080_FURNITURE_EQUIPMENT | B43: Furniture and Equipment | C43: 561162_DATA_PROCESS_EQUIP | D43: Data processing equipment - non expendable
A44: 080_FURNITURE_EQUIPMENT | B44: Furniture and Equipment | C44: 561163_PRINT_REP_DIST_EQUIP | D44: Printing, Reproduction, Distribution Equipment - non expendable
A45: 080_FURNITURE_EQUIPMENT | B45: Furniture and Equipment | C45: 561164_VEHICLES | D45: Vehicles
A46: 080_FURNITURE_EQUIPMENT | B46: Furniture and Equipment | C46: 561165_COMMUNIC_EQUIP | D46: Communication Equipment - non expendable
A47: 080_FURNITURE_EQUIPMENT | B47: Furniture and Equipment | C47: 561167_MOBILE_PHONE_HANDSET | D47: Mobile Phone Handset (not to be used for monthly charges)
A48: 080_FURNITURE_EQUIPMENT | B48: Furniture and Equipment | C48: 561168_SECURITY_EQUIP_<$5000 | D48: Security Equipment (<$5,000)
A49: 080_FURNITURE_EQUIPMENT | B49: Furniture and Equipment | C49: 561191_OTHER_EQUIPMENT | D49: Other non-expendable equipment
A50: 080_FURNITURE_EQUIPMENT | B50: Furniture and Equipment | C50: 561268_SECURITY_EQUIP_>$5000 | D50: Security Equipment (>$5,000)
A51: 090_ACQUISITION_IMPROV_PREMISE | B51: Acquisition and Improvement of Premises | C51: 571101_CONSTRUCTION_COSTS | D51: Construction costs
A52: 100_SEMINARS | B52: Seminars | C52: 581100_SEMINARS_GRAL | D52: Seminars General
A53: 110_OTHER_TRAINING_ACTIVITIES | B53: Training Activities | C53: 581116_IN_SERVICE_TRAINING | D53: In service training
A54: 110_OTHER_TRAINING_ACTIVITIES | B54: Training Activities | C54: 581117_STUDY_TOURS | D54: Study tours
A55: 110_OTHER_TRAINING_ACTIVITIES | B55: Training Activities | C55: 581118_SEMINARS_OTHER | D55: Seminars other group training
A56: 110_OTHER_TRAINING_ACTIVITIES | B56: Training Activities | C56: 581211_FELLOWSHIPS | D56: Fellowships
A57: 120_GRANTS | B57: Grants | C57: 582104_GRANTS | D57: Grants
A58: 121_DIRECT_PAYMENT_TO_BENEF | B58: Direct Payment to Beneficiaries (Cash Transfers) | C58: 582105_DIRECT_PAYMENT_TO_BENEF | D58: Direct Payment to Beneficiaries (Cash Transfers)
A59: 140_PROG_SUPPORT_COSTS | B59: Programme Support Costs | C59: 593101_PROGRAMME_SUPPORT | D59: Programme support
A60: 140_PROG_SUPPORT_COSTS | B60: Programme Support Costs | C60: 593105_UNDP_AOS | D60: UNDP Administrative and Operational Support
A61: 160_PROVISIONS | B61: Provision for Cost Increases or Contingencies | C61: 597111_PROVISION_CONTINGENCIES | D61: Provison for Contingencies
A62: 160_PROVISIONS | B62: Provision for Cost Increases or Contingencies | C62: 597115_PROVISION_COST_INCREASE | D62: Provison for Cost Increase

Sheet How to "Add Resource Line"
A2: Select whole row where you need the additional line
A3: Do not select the fist line under the Activity, this to avoid loosing the borders layout
A31: but select a line in the middle or the last row of the Activity
A58: Click the button "Add Resource Line"
Q72: Line added, with all formulas and conditional formatting

Sheet How to "Add New Activity"
A2: Select the whole row where you need the additional activity
A3: Always select the fist line of an Activity, never a line in the middle.
A28: but select the 1st line of an existing activity
A52: Click the button "Add New Activity"
P66: New Activity, incl. 3 Resource Lines, has been created. If more resource lines are required, please follow the 'How to "Add Resource Line"' guidance. The figures for this new activity are automaticaly included in the total of the Output and therefore there is no need to change the formulas of the Output

Sheet How to "Add New Output"
A2: You should always add the additional/new Output under the Outcome where it is required
A3: You shoud select the top line of an existing Output in that Outcome, never select a line in the middle of another Output
AF19: Output wrongly created in the middle of an existing output
A30: but, select the top row (1st line) of an existing Output
A52: Click the button "Add New Output"
P68: The newly created Output with all the formulas and conditional formatting. This output is automatically included in the Outcome Total and there is no need to change their formulas.

Sheet How to "Delete Line(s)"
A1: Select the whole line, or lines, that you need to delete.
A2: If a whole Activity or Output needs to be deleted, it is better to select the entire Activity or Output.
A3: CAUTION: You cannot undo this action.
A4: Never delete an Outcome as this will break the PSC formulas
A31: Click the button "Delete Line", CAUTION: You cannot undo this action.
A67: Click the button "Delete Line", CAUTION: You cannot undo this action.
A70: If a resource that currently exists in IRIS is no longer required, do not the lete the line, but instead make the budget USD 0

Sheet ADD_RES_LINE
A2: Output | B2: Activity | C2: CPO / GP | D2: P&B Output | E2: Flagship Programme(s) | F2: Inputs | G2: Type | H2: Unit rate | J2: Quantity | K2: ='Budget Template'!K11 -> 2024 | L2: ='Budget Template'!L11 -> 2025 | M2: ='Budget Template'!M11 -> 2026 | N2: ='Budget Template'!N11 -> 2027 | O2: ='Budget Template'!O11 -> 2028 | P2: Total | R2: ='Budget Template'!R11 -> 2024 | S2: ='Budget Template'!S11 -> 2025 | T2: ='Budget Template'!T11 -> 2026 | U2: ='Budget Template'!U11 -> 2027 | V2: ='Budget Template'!V11 -> 2028 | W2: Total | Y2: ='Budget Template'!Y11 -> 2024 | Z2: ='Budget Template'!Z11 -> 2025 | AA2: ='Budget Template'!AA11 -> 2026 | AB2: ='Budget Template'!AB11 -> 2027 | AC2: ='Budget Template'!AC11 -> 2028 | AD2: Total | AF2: ='Budget Template'!AF11 -> 2024 | AG2: ='Budget Template'!AG11 -> 2025 | AH2: ='Budget Template'!AH11 -> 2026 | AI2: ='Budget Template'!AI11 -> 2027 | AJ2: ='Budget Template'!AJ11 -> 2028 | AK2: Total
F3: (Assumptions) | G3: Resource type* (IRIS)
P5: =SUM(K5:O5) -> 0 | Y5: =K5-R5 -> 0 | Z5: =L5-S5 -> 0 | AA5: =M5-T5 -> 0 | AB5: =N5-U5 -> 0 | AC5: =O5-V5 -> 0 | AD5: =SUM(Y5:AC5) -> 0 | AF5: =IF(K5=R5,"",IF(K5>R5,K5,-K5)) ->  | AG5: =IF(L5=S5,"",IF(L5>S5,L5,-L5)) ->  | AK5: =IF(COUNT(AF5:AJ5)=0,"",P5) -> 

Sheet ADD_ACTIVITY
A2: Output | B2: Activity | C2: CPO / GP | D2: P&B Output | E2: Flagship Programme(s) | F2: Inputs | G2: Type | H2: Unit rate | J2: Quantity | K2: ='Budget Template'!K11 -> 2024 | L2: ='Budget Template'!L11 -> 2025 | M2: ='Budget Template'!M11 -> 2026 | N2: ='Budget Template'!N11 -> 2027 | O2: ='Budget Template'!O11 -> 2028 | P2: Total | R2: ='Budget Template'!R11 -> 2024 | S2: ='Budget Template'!S11 -> 2025 | T2: ='Budget Template'!T11 -> 2026 | U2: ='Budget Template'!U11 -> 2027 | V2: ='Budget Template'!V11 -> 2028 | W2: Total | Y2: ='Budget Template'!Y11 -> 2024 | Z2: ='Budget Template'!Z11 -> 2025 | AA2: ='Budget Template'!AA11 -> 2026 | AB2: ='Budget Template'!AB11 -> 2027 | AC2: ='Budget Template'!AC11 -> 2028 | AD2: Total | AF2: ='Budget Template'!AF11 -> 2024 | AG2: ='Budget Template'!AG11 -> 2025 | AH2: ='Budget Template'!AH11 -> 2026 | AI2: ='Budget Template'!AI11 -> 2027 | AJ2: ='Budget Template'!AJ11 -> 2028 | AK2: Total
F3: (Assumptions) | G3: Resource type* (IRIS)
B5: 0 | P5: =SUM(K5:O5) -> 0 | Y5: =K5-R5 -> 0 | Z5: =L5-S5 -> 0 | AA5: 0 | AB5: 0 | AC5: 0 | AD5: =SUM(Y5:AC5) -> 0 | AF5: =IF(K5=R5,"",IF(K5>R5,K5,-K5)) ->  | AG5: =IF(L5=S5,"",IF(L5>S5,L5,-L5)) ->  | AK5: =IF(COUNT(AF5:AJ5)=0,"",P5) -> 
P6: =SUM(K6:O6) -> 0 | Y6: =K6-R6 -> 0 | Z6: 0 | AA6: 0 | AB6: 0 | AC6: 0 | AD6: =SUM(Y6:AC6) -> 0 | AF6: =IF(K6=R6,"",IF(K6>R6,K6,-K6)) ->  | AK6: =IF(COUNT(AF6:AJ6)=0,"",P6) -> 
P7: =SUM(K7:O7) -> 0 | Y7: =K7-R7 -> 0 | Z7: 0 | AA7: 0 | AB7: 0 | AC7: 0 | AD7: =SUM(Y7:AC7) -> 0 | AF7: =IF(K7=R7,"",IF(K7>R7,K7,-K7)) ->  | AK7: =IF(COUNT(AF7:AJ7)=0,"",P7) -> 

Sheet ADD_OUTPUT
A2: Output | B2: Activity | C2: CPO / GP | D2: P&B Output | E2: Flagship Programme(s) | F2: Inputs | G2: Type | H2: Unit rate | J2: Quantity | K2: ='Budget Template'!K11 -> 2024 | L2: ='Budget Template'!L11 -> 2025 | M2: ='Budget Template'!M11 -> 2026 | N2: ='Budget Template'!N11 -> 2027 | O2: ='Budget Template'!O11 -> 2028 | P2: Total | R2: ='Budget Template'!R11 -> 2024 | S2: ='Budget Template'!S11 -> 2025 | T2: ='Budget Template'!T11 -> 2026 | U2: ='Budget Template'!U11 -> 2027 | V2: ='Budget Template'!V11 -> 2028 | W2: Total | Y2: ='Budget Template'!Y11 -> 2024 | Z2: ='Budget Template'!Z11 -> 2025 | AA2: ='Budget Template'!AA11 -> 2026 | AB2: ='Budget Template'!AB11 -> 2027 | AC2: ='Budget Template'!AC11 -> 2028 | AD2: Total | AF2: ='Budget Template'!AF11 -> 2024 | AG2: ='Budget Template'!AG11 -> 2025 | AH2: ='Budget Template'!AH11 -> 2026 | AI2: ='Budget Template'!AI11 -> 2027 | AJ2: ='Budget Template'!AJ11 -> 2028 | AK2: Total
F3: (Assumptions) | G3: Resource type* (IRIS)
A5: 0 | K5: =SUM(K6:K18) -> 0 | L5: =SUM(L6:L18) -> 0 | M5: =SUM(M6:M18) -> 0 | N5: 0 | O5: 0 | P5: =SUM(K5:O5) -> 0 | Y5: =SUM(Y6:Y18) -> 0 | Z5: =SUM(Z6:Z18) -> 0 | AA5: =SUM(AA6:AA18) -> 0 | AB5: 0 | AC5: 0 | AD5: =SUM(Y5:AC5) -> 0 | AF5: =IF(COUNT(AF6:AF18)=0,"",K5) ->  | AG5: =IF(COUNT(AG6:AG18)=0,"",L5) ->  | AH5: =IF(COUNT(AH6:AH18)=0,"",M5) ->  | AI5: =IF(COUNT(AI6:AI18)=0,"",N5) ->  | AJ5: =IF(COUNT(AJ6:AJ18)=0,"",O5) ->  | AK5: =IF(COUNT(AF5:AJ5)=0,"",P5) -> 
E6: DO NOT DELETE LINE
B7: 0 | P7: =SUM(K7:O7) -> 0 | Y7: =K7-R7 -> 0 | Z7: =L7-S7 -> 0 | AA7: 0 | AB7: 0 | AC7: 0 | AD7: =SUM(Y7:AC7) -> 0 | AF7: =IF(K7=R7,"",IF(K7>R7,K7,-K7)) ->  | AG7: =IF(L7=S7,"",IF(L7>S7,L7,-L7)) ->  | AK7: =IF(COUNT(AF7:AJ7)=0,"",P7) -> 
P8: =SUM(K8:O8) -> 0 | Y8: 0 | Z8: 0 | AA8: 0 | AB8: 0 | AC8: 0 | AD8: =SUM(Y8:AC8) -> 0
P9: =SUM(K9:O9) -> 0 | Y9: 0 | Z9: 0 | AA9: 0 | AB9: 0 | AC9: 0 | AD9: 0
B10: 0 | P10: =SUM(K10:O10) -> 0 | Y10: 0 | Z10: 0 | AA10: 0 | AB10: 0 | AC10: 0 | AD10: 0
P11: =SUM(K11:O11) -> 0 | Y11: 0 | Z11: 0 | AA11: 0 | AB11: 0 | AC11: 0 | AD11: 0
P12: 0 | Y12: 0 | Z12: 0 | AA12: 0 | AB12: 0 | AC12: 0 | AD12: 0
B13: 0 | P13: 0 | Y13: 0 | Z13: 0 | AA13: 0 | AB13: 0 | AC13: 0 | AD13: =SUM(Y13:AC13) -> 0
P14: 0 | Y14: 0 | Z14: 0 | AA14: 0 | AB14: 0 | AC14: 0 | AD14: 0
P15: 0 | Y15: 0 | Z15: 0 | AA15: 0 | AB15: 0 | AC15: 0 | AD15: 0
B16: 0 | P16: 0 | Y16: 0 | Z16: 0 | AA16: 0 | AB16: 0 | AC16: 0 | AD16: 0
P17: 0 | Y17: =K17-R17 -> 0 | Z17: 0 | AA17: 0 | AB17: 0 | AC17: 0 | AD17: =SUM(Y17:AC17) -> 0 | AF17: =IF(K17=R17,"",IF(K17>R17,K17,-K17)) ->  | AK17: =IF(COUNT(AF17:AJ17)=0,"",P17) -> 
P18: 0 | Y18: =K18-R18 -> 0 | Z18: 0 | AA18: 0 | AB18: 0 | AC18: 0 | AD18: 0 | AF18: =IF(K18=R18,"",IF(K18>R18,K18,-K18)) -> 

Sheet Flagship Programmes (hidden)
A2: Flagship Programmes
A3: None | B3: 2021-10-07
A4: IPEC+ | B4: 2021-10-07
A5: Building Social Protection Floors for All (SPF) | B5: 2021-10-07
A6: Safety and Health for All | B6: 2021-10-07
A7: Jobs for Peace and Resilience (JPR) | B7: 2021-10-07
A8: Better Work | B8: 2021-10-07

Sheet CP - SF Combinations_SQLdata (hidden)
A1: CP/SF combination as at 27-May-2022
A2: CPO Value | B2: CPO Description | C2: SF Value | D2: SF Description
A3: ABW101 | B3: Strengthened institutional capacity of employers' organizations | C3: 590011 | D3: Output 1.1. Increased institutional capacity of employer and business membership organizations (EBMOs)
A4: AFG105 | B4: Entrepreneurship and enterprise development policies, strategies and programmes have increased access to decent jobs and incomes for women and men | C4: 590041 | D4: Output 4.1. Increased capacity of Member States to create an enabling environment for entrepreneurship and sustainable enterprises
A5: AFG105 | B5: Entrepreneurship and enterprise development policies, strategies and programmes have increased access to decent jobs and incomes for women and men | C5: 590042 | D5: Output 4.2. Strengthened capacity of enterprises and their support systems to enhance productivity and sustainability
A6: AFG105 | B6: Entrepreneurship and enterprise development policies, strategies and programmes have increased access to decent jobs and incomes for women and men | C6: 590043 | D6: Output 4.3. Increased capacity of Member States to develop policies, legislation and other measures that are specifically aimed at facilitating the transition of enterprises to formality
A7: AFG105 | B7: Entrepreneurship and enterprise development policies, strategies and programmes have increased access to decent jobs and incomes for women and men | C7: 590044 | D7: Output 4.4. Increased capacity of Member States and enterprises to develop policies and measures that promote the alignment of business practices with decent work and a human-centred approach to the future of work
A8: AFG106 | B8: Young men and women, including in the most vulnerable and disadvantaged groups, have acquired skills that are in demand | C8: 590052 | D8: Output 5.2. Increased capacity of Member States to strengthen skills and lifelong learning policies, governance models and financing system
A9: AFG106 | B9: Young men and women, including in the most vulnerable and disadvantaged groups, have acquired skills that are in demand | C9: 590053 | D9: Output 5.3. Increased capacity of Member States to design and deliver innovative, flexible and inclusive learning options, encompassing work-based learning and quality apprenticeships
A10: AFG126 | B10: The labour market statistics and information system has provided gender responsive, and evidence-based information and knowledge, and has promoted and planned for sustainable and decent work | C10: 710271 | D10: Output A.1. Enhanced decent work statistics using innovative sources and statistical standards
A11: AFG126 | B11: The labour market statistics and information system has provided gender responsive, and evidence-based information and knowledge, and has promoted and planned for sustainable and decent work | C11: 710272 | D11: Output A.2. Cutting-edge research and improved knowledge management to promote decent work
A12: AFG127 | B12: Tripartite constituents have facilitated decent work for women and men and have new and revised decent work enabling legislation, and responsive labour market institutions and mechanisms | C12: 590034 | D12: Output 3.4. Increased capacity of Member States to promote peaceful, stable and resilient societies through decent work
A13: AFG127 | B13: Tripartite constituents have facilitated decent work for women and men and have new and revised decent work enabling legislation, and responsive labour market institutions and mechanisms | C13: 590035 | D13: Output 3.5. Increased capacity of Member States to formulate and implement labour market programmes and employment services for transitions to decent work over the life course, with particular focus on young and older workers
A14: AFG127 | B14: Tripartite constituents have facilitated decent work for women and men and have new and revised decent work enabling legislation, and responsive labour market institutions and mechanisms | C14: 590062 | D14: Output 6.2. Increased capacity of Member States to strengthen policies and strategies to promote and ensure equal opportunities, participation and treatment between women and men, including equal remuneration for work of equal value
A15: AFG127 | B15: Tripartite constituents have facilitated decent work for women and men and have new and revised decent work enabling legislation, and responsive labour market institutions and mechanisms | C15: 590063 | D15: Output 6.3. Increased capacity of Member States to develop gender-responsive legislation, policies and measures for a world of work free from violence and harassment
A16: AFG128 | B16: Placeholder for R2Jproject contributing to AFG105 output 4.2 | C16: 590042 | D16: Output 4.2. Strengthened capacity of enterprises and their support systems to enhance productivity and sustainability
A17: AFG132 | B17: Men and women workers in Afghanistan have benefitted from improved labour administration and decent working conditions | C17: 590013 | D17: Output 1.3. Increased institutional capacity and resilience of labour administrations
A18: AFG132 | B18: Men and women workers in Afghanistan have benefitted from improved labour administration and decent working conditions | C18: 590014 | D18: Output 1.4. Increased capacity of Member States to improve social dialogue and labour relations laws, processes and institutions
A19: AFG132 | B19: Men and women workers in Afghanistan have benefitted from improved labour administration and decent working conditions | C19: 590072 | D19: Output 7.2. Increased capacity of Member States to ensure safe and healthy working conditions
A20: AFG132 | B20: Men and women workers in Afghanistan have benefitted from improved labour administration and decent working conditions | C20: 590073 | D20: Output 7.3. Increased capacity of Member States to set adequate wages and promote decent working time
A21: AFG133 | B21: Workers, in particular the most vulnerable, have been protected from unacceptable forms of work, and child labour has been reduced considerably | C21: 590071 | D21: Output 7.1. Increased capacity of Member States to ensure respect for, promote and realize fundamental principles and rights at work
A22: AFG133 | B22: Workers, in particular the most vulnerable, have been protected from unacceptable forms of work, and child labour has been reduced considerably | C22: 590072 | D22: Output 7.2. Increased capacity of Member States to ensure safe and healthy working conditions
A23: AFG133 | B23: Workers, in particular the most vulnerable, have been protected from unacceptable forms of work, and child labour has been reduced considerably | C23: 590074 | D23: Output 7.4. Increased capacity of Member States to provide adequate labour protection to workers in diverse forms of work arrangements, including on digital labour platforms, and in informal employment
A24: AFG133 | B24: Workers, in particular the most vulnerable, have been protected from unacceptable forms of work, and child labour has been reduced considerably | C24: 590075 | D24: Output 7.5. Increased capacity of Member States to develop fair and effective labour migration frameworks, institutions and services to protect migrant workers
A25: AFG154 | B25: Improved capacity of the tripartite constituents to develop policies improving social security coverage, notably of excluded groups | C25: 590081 | D25: Output 8.1. Increased capacity of Member States to develop new or reformed sustainable national social protection strategies, policies or legal frameworks to extend coverage and enhance benefit adequacy
A26: AFG801 | B26: Strengthened capacity of employers' organizations for effective social dialogue and better industrial relations | C26: 590011 | D26: Output 1.1. Increased institutional capacity of employer and business membership organizations (EBMOs)
A27: AFG802 | B27: Strengthened institutional capacity of workers' organizations | C27: 590012 | D27: Output 1.2. Increased institutional capacity of workers’ organizations
A28: AFG826 | B28: Strengthened capacity of member States to ratify and apply international labour standards and to fulfil their reporting obligations | C28: 590021 | D28: Output 2.1. Increased capacity of Member States to ratify international labour standards
A29: AFG826 | B29: Strengthened capacity of member States to ratify and apply international labour standards and to fulfil their reporting obligations | C29: 590022 | D29: Output 2.2. Increased capacity of Member States to apply international labour standards
A30: AFG826 | B30: Strengthened capacity of member States to ratify and apply international labour standards and to fulfil their reporting obligations | C30: 590023 | D30: Output 2.3. Increased capacity of Member States to engage in a forward-looking international labour standards policy
A31: AFG826 | B31: Strengthened capacity of member States to ratify and apply international labour standards and to fulfil their reporting obligations | C31: 590024 | D31: Output 2.4. Increased capacity Member States to apply sectoral international labour standards, codes of practice and guidelines
A32: AGO101 | B32: L'Angola met en oeuvre des programmes et stratégies de promotion du travail décent avec emphase sur la création d'emplois et la protection sociale | C32: 590031 | D32: Output 3.1. Increased capacity of Member States to formulate and implement national employment policies in response to the COVID-19 crisis
A33: AGO101 | B33: L'Angola met en oeuvre des programmes et stratégies de promotion du travail décent avec emphase sur la création d'emplois et la protection sociale | C33: 590081 | D33: Output 8.1. Increased capacity of Member States to develop new or reformed sustainable national social protection strategies, policies or legal frameworks to extend coverage and enhance benefit adequacy
A34: AGO101 | B34: L'Angola met en oeuvre des programmes et stratégies de promotion du travail décent avec emphase sur la création d'emplois et la protection sociale | C34: 590082 | D34: Output 8.2. Increased capacity of Member States to improve governance and sustainability of social protection systems
A35: AGO801 | C35: 590011 | D35: Output 1.1. Increased institutional capacity of employer and business membership organizations (EBMOs)
A36: AGO802 | B36: Les travailleurs sont dotés d'organisations fortes, indépendantes et représentatives | C36: 590012 | D36: Output 1.2. Increased institutional capacity of workers’ organizations
A37: AGO827 | B37: Strengthened capacity of member States to ratify and apply international labour standards and to fulfil their reporting obligations | C37: 590021 | D37: Output 2.1. Increased capacity of Member States to ratify international labour standards
A38: AGO827 | B38: Strengthened capacity of member States to ratify and apply international labour standards and to fulfil their reporting obligations | C38: 590023 | D38: Output 2.3. Increased capacity of Member States to engage in a forward-looking international labour standards policy
A39: AIA801 | B39: Strengthened institutional capacity of employers' organisations | C39: 590011 | D39: Output 1.1. Increased institutional capacity of employer and business membership organizations (EBMOs)
A40: ALB103 | B40: The effectiveness and quality of labour inspection systems and social dialogue institutions are strengthened | C40: 590013 | D40: Output 1.3. Increased institutional capacity and resilience of labour administrations
A41: ALB103 | B41: The effectiveness and quality of labour inspection systems and social dialogue institutions are strengthened | C41: 590014 | D41: Output 1.4. Increased capacity of Member States to improve social dialogue and labour relations laws, processes and institutions
A42: ALB103 | B42: The effectiveness and quality of labour inspection systems and social dialogue institutions are strengthened | C42: 590074 | D42: Output 7.4. Increased capacity of Member States to provide adequate labour protection to workers in diverse forms of work arrangements, including on digital labour platforms, and in informal employment
A43: ALB127 | B43: Labour migration policies are more effective | C43: 590075 | D43: Output 7.5. Increased capacity of Member States to develop fair and effective labour migration frameworks, institutions and services to protect migrant workers
A44: ALB128 | B44: Legal and institutional reforms initiated to promote the enabling environment for sustainable enterprises | C44: 590042 | D44: Output 4.2. Strengthened capacity of enterprises and their support systems to enhance productivity and sustainability
A45: ALB131 | B45: Wage policies improved in accordance with International Labour Standards | C45: 590073 | D45: Output 7.3. Increased capacity of Member States to set adequate wages and promote decent working time
A46: ALB132 | B46: Design and delivery of employment and skills policy improved at central and local levels | C46: 590031 | D46: Output 3.1. Increased capacity of Member States to formulate and implement national employment policies in response to the COVID-19 crisis
A47: ALB132 | B47: Design and delivery of employment and skills policy improved at central and local levels | C47: 590035 | D47: Output 3.5. Increased capacity of Member States to formulate and implement labour market programmes and employment services for transitions to decent work over the life course, with particular focus on young and older workers
A48: ALB132 | B48: Design and delivery of employment and skills policy improved at central and local levels | C48: 590051 | D48: Output 5.1. Increased capacity of Member States to identify current skills mismatches and anticipate future skill needs
A49: ALB151 | B49: A national consensus built on the social security reform through tripartite social dialogue | C49: 590081 | D49: Output 8.1. Increased capacity of Member States to develop new or reformed sustainable national social protection strategies, policies or legal frameworks to extend coverage and enhance benefit adequacy
A50: ALB151 | B50: A national consensus built on the social security reform through tripartite social dialogue | C50: 590082 | D50: Output 8.2. Increased capacity of Member States to improve governance and sustainability of social protection systems
A51: ALB153 | B51: Increased capacity of the government and social partners to combat the worst forms of child labour | C51: 590071 | D51: Output 7.1. Increased capacity of Member States to ensure respect for, promote and realize fundamental principles and rights at work
A52: ALB154 | B52: National law and practice improved in accordance with C.190 and R. 206 | C52: 590063 | D52: Output 6.3. Increased capacity of Member States to develop gender-responsive legislation, policies and measures for a world of work free from violence and harassment
A53: ALB801 | B53: Strengthened institutional capacity of employers' organisations | C53: 590011 | D53: Output 1.1. Increased institutional capacity of employer and business membership organizations (EBMOs)
A54: ALB802 | B54: Strengthened institutional capacity of workers' organisations | C54: 590012 | D54: Output 1.2. Increased institutional capacity of workers’ organizations
A55: ALB826 | B55: Strengthened capacity of member States to ratify and apply international labour standards and to fulfil their reporting obligations | C55: 590021 | D55: Output 2.1. Increased capacity of Member States to ratify international labour standards
A56: ANT801 | B56: Strengthened institutional capacity of employers' organisations | C56: 590011 | D56: Output 1.1. Increased institutional capacity of employer and business membership organizations (EBMOs)
A57: ARE826 | B57: Strengthened capacity of member States to ratify and apply international labour standards and to fulfil their reporting obligations | C57: 590022 | D57: Output 2.2. Increased capacity of Member States to apply international labour standards
A58: ARG126 | B58: Capacidades del gobierno y los actores sociales fortalecidas para implementar políticas y programas que generen empleo productivo, sostenible e inclusivo | C58: 590031 | D58: Output 3.1. Increased capacity of Member States to formulate and implement national employment policies in response to the COVID-19 crisis
A59: ARG126 | B59: Capacidades del gobierno y los actores sociales fortalecidas para implementar políticas y programas que generen empleo productivo, sostenible e inclusivo | C59: 590033 | D59: Output 3.3. Increased capacity of Member States to formulate and implement policies for a just transition towards environmentally sustainable economies and societies
A60: ARG126 | B60: Capacidades del gobierno y los actores sociales fortalecidas para implementar políticas y programas que generen empleo productivo, sostenible e inclusivo | C60: 590042 | D60: Output 4.2. Strengthened capacity of enterprises and their support systems to enhance productivity and sustainability
A61: ARG126 | B61: Capacidades del gobierno y los actores sociales fortalecidas para implementar políticas y programas que generen empleo productivo, sostenible e inclusivo | C61: 590061 | D61: Output 6.1. Increased capacity of Member States to promote investments in the care economy and a more balanced sharing of family responsibilities
A62: ARG155 | B62: Capacidad institucional mejorada de los mandantes tripartitos para la aplicación de políticas y normativas dirigidas a la prevención y erradicación del trabajo infantil y del trabajo forzoso | C62: 590032 | D62: Output 3.2. Increased capacity of Member States to formulate and implement policies and strategies for creating decent work in the rural economy
A63: ARG155 | B63: Capacidad institucional mejorada de los mandantes tripartitos para la aplicación de políticas y normativas dirigidas a la prevención y erradicación del trabajo infantil y del trabajo forzoso | C63: 590071 | D63: Output 7.1. Increased capacity of Member States to ensure respect for, promote and realize fundamental principles and rights at work
A64: ARG177 | B64: Capacidad del gobierno y los actores sociales fortalecidas para implementar políticas y programas de protección efectiva en el trabajo con igualdad de género | C64: 590043 | D64: Output 4.3. Increased capacity of Member States to develop policies, legislation and other measures that are specifically aimed at facilitating the transition of enterprises to formality
A65: ARG177 | B65: Capacidad del gobierno y los actores sociales fortalecidas para implementar políticas y programas de protección efectiva en el trabajo con igualdad de género | C65: 590063 | D65: Output 6.3. Increased capacity of Member States to develop gender-responsive legislation, policies and measures for a world of work free from violence and harassment
A66: ARG177 | B66: Capacidad del gobierno y los actores sociales fortalecidas para implementar políticas y programas de protección efectiva en el trabajo con igualdad de género | C66: 590074 | D66: Output 7.4. Increased capacity of Member States to provide adequate labour protection to workers in diverse forms of work arrangements, including on digital labour platforms, and in informal employment
A67: ARG177 | B67: Capacidad del gobierno y los actores sociales fortalecidas para implementar políticas y programas de protección efectiva en el trabajo con igualdad de género | C67: 590075 | D67: Output 7.5. Increased capacity of Member States to develop fair and effective labour migration frameworks, institutions and services to protect migrant workers
A68: ARG801 | B68: Cap de las OE fortalecidas | C68: 590011 | D68: Output 1.1. Increased institutional capacity of employer and business membership organizations (EBMOs)
A69: ARG802 | B69: Cap de las OT fortalecidas | C69: 590012 | D69: Output 1.2. Increased institutional capacity of workers’ organizations
A70: ARG803 | B70: Diálogo social efectivo e institucionalizado a nivel federal | C70: 590013 | D70: Output 1.3. Increased institutional capacity and resilience of labour administrations
A71: ARG803 | B71: Diálogo social efectivo e institucionalizado a nivel federal | C71: 590014 | D71: Output 1.4. Increased capacity of Member States to improve social dialogue and labour relations laws, processes and institutions
A72: ARG803 | B72: Diálogo social efectivo e institucionalizado a nivel federal | C72: 590044 | D72: Output 4.4. Increased capacity of Member States and enterprises to develop policies and measures that promote the alignment of business practices with decent work and a human-centred approach to the future of work
A73: ARM129 | B73: Increased capacity of labour administration and social partners on workplace compliance and better working conditions | C73: 590013 | D73: Output 1.3. Increased institutional capacity and resilience of labour administrations
A74: ARM129 | B74: Increased capacity of labour administration and social partners on workplace compliance and better working conditions | C74: 590014 | D74: Output 1.4. Increased capacity of Member States to improve social dialogue and labour relations laws, processes and institutions
A75: ARM152 | B75: Increased capacities of constituents to develop and implement an integrated policy response on employment and social protection | C75: 590031 | D75: Output 3.1. Increased capacity of Member States to formulate and implement national employment policies in response to the COVID-19 crisis
A76: ARM152 | B76: Increased capacities of constituents to develop and implement an integrated policy response on employment and social protection | C76: 590035 | D76: Output 3.5. Increased capacity of Member States to formulate and implement labour market programmes and employment services for transitions to decent work over the life course, with particular focus on young and older workers
A77: ARM152 | B77: Increased capacities of constituents to develop and implement an integrated policy response on employment and social protection | C77: 590051 | D77: Output 5.1. Increased capacity of Member States to identify current skills mismatches and anticipate future skill needs
A78: ARM152 | B78: Increased capacities of constituents to develop and implement an integrated policy response on employment and social protection | C78: 590083 | D78: Output 8.3. Increased capacity of Member States to integrate social protection in comprehensive policy responses to support and protect workers and employers during their life and work transitions
A79: ARM154 | B79: Effective measures implemented by constituents to improve business environment and support sustainable enterprises | C79: 590041 | D79: Output 4.1. Increased capacity of Member States to create an enabling environment for entrepreneurship and sustainable enterprises
A80: ARM154 | B80: Effective measures implemented by constituents to improve business environment and support sustainable enterprises | C80: 590043 | D80: Output 4.3. Increased capacity of Member States to develop policies, legislation and other measures that are specifically aimed at facilitating the transition of enterprises to formality
A81: ARM154 | B81: Effective measures implemented by constituents to improve business environment and support sustainable enterprises | C81: 590074 | D81: Output 7.4. Increased capacity of Member States to provide adequate labour protection to workers in diverse forms of work arrangements, including on digital labour platforms, and in informal employment
A82: ARM801 | B82: New or improved member services by employer's organisations. | C82: 590011 | D82: Output 1.1. Increased institutional capacity of employer and business membership organizations (EBMOs)
A83: ARM802 | B83: Strengthened institutional capacity of workers' organisations | C83: 590012 | D83: Output 1.2. Increased institutional capacity of workers’ organizations
A84: ARM826 | B84: Strengthened capacity of member States to ratify and apply international labour standards and to fulfil their reporting obligations | C84: 590022 | D84: Output 2.2. Increased capacity of Member States to apply international labour standards
A85: ARM826 | B85: Strengthened capacity of member States to ratify and apply international labour standards and to fulfil their reporting obligations | C85: 590023 | D85: Output 2.3. Increased capacity of Member States to engage in a forward-looking international labour standards policy
A86: ATG102 | B86: Gender-responsive action programme and strategy adopted and implemented to transition toward a just, green and resilient economy for all | C86: 590033 | D86: Output 3.3. Increased capacity of Member States to formulate and implement policies for a just transition towards environmentally sustainable economies and societies
A87: ATG102 | B87: Gender-responsive action programme and strategy adopted and implemented to transition toward a just, green and resilient economy for all | C87: 590042 | D87: Output 4.2. Strengthened capacity of enterprises and their support systems to enhance productivity and sustainability
A88: ATG126 | B88: A national Technical and Vocational Education and Training (TVET) policy framework is implemented | C88: 590053 | D88: Output 5.3. Increased capacity of Member States to design and deliver innovative, flexible and inclusive learning options, encompassing work-based learning and quality apprenticeships
A89: ATG801 | B89: Support Employers in Antigua | C89: 590011 | D89: Output 1.1. Increased institutional capacity of employer and business membership organizations (EBMOs)
A90: ATG802 | B90: Social Protection Antigua | C90: 590012 | D90: Output 1.2. Increased institutional capacity of workers’ organizations
A91: AZE103 | B91: Increased capacities of labour inspection and social partners to improve the workplace compliance | C91: 590013 | D91: Output 1.3. Increased institutional capacity and resilience of labour administrations
A92: AZE103 | B92: Increased capacities of labour inspection and social partners to improve the workplace compliance | C92: 590014 | D92: Output 1.4. Increased capacity of Member States to improve social dialogue and labour relations laws, processes and institutions
A93: AZE103 | B93: Increased capacities of labour inspection and social partners to improve the workplace compliance | C93: 590072 | D93: Output 7.2. Increased capacity of Member States to ensure safe and healthy working conditions
A94: AZE106 | B94: Increased capacity of constituents to implement national employment policies and provide employment services addressing work transitions | C94: 590031 | D94: Output 3.1. Increased capacity of Member States to formulate and implement national employment policies in response to the COVID-19 crisis
A95: AZE106 | B95: Increased capacity of constituents to implement national employment policies and provide employment services addressing work transitions | C95: 590035 | D95: Output 3.5. Increased capacity of Member States to formulate and implement labour market programmes and employment services for transitions to decent work over the life course, with particular focus on young and older workers
A96: AZE106 | B96: Increased capacity of constituents to implement national employment policies and provide employment services addressing work transitions | C96: 590074 | D96: Output 7.4. Increased capacity of Member States to provide adequate labour protection to workers in diverse forms of work arrangements, including on digital labour platforms, and in informal employment
A97: AZE156 | B97: Administrative infrastructure for social services improved to provide adequate and quality services for working age and elderly population in line with SPF | C97: 590082 | D97: Output 8.2. Increased capacity of Member States to improve governance and sustainability of social protection systems
A98: AZE801 | B98: Increased capacities of employers' organisations to effectively support their members and influence socio-economic policies | C98: 590011 | D98: Output 1.1. Increased institutional capacity of employer and business membership organizations (EBMOs)
A99: AZE802 | B99: Strengthened institutional capacity of workers' organisations | C99: 590012 | D99: Output 1.2. Increased institutional capacity of workers’ organizations
A100: AZE826 | B100: Strengthened capacity of member States to ratify and apply international labour standards and to fulfil their reporting obligations | C100: 590022 | D100: Output 2.2. Increased capacity of Member States to apply international labour standards
A101: AZE826 | B101: Strengthened capacity of member States to ratify and apply international labour standards and to fulfil their reporting obligations | C101: 590023 | D101: Output 2.3. Increased capacity of Member States to engage in a forward-looking international labour standards policy
A102: BDI202 | B102: Les cadres réglementaire et institutionnel de la protection sociale sont renforcés | C102: 590082 | D102: Output 8.2. Increased capacity of Member States to improve governance and sustainability of social protection systems
A103: BDI801 | B103: Strengthened institutional capacity of employers' organisations | C103: 590011 | D103: Output 1.1. Increased institutional capacity of employer and business membership organizations (EBMOs)
A104: BDI801 | B104: Strengthened institutional capacity of employers' organisations | C104: 590014 | D104: Output 1.4. Increased capacity of Member States to improve social dialogue and labour relations laws, processes and institutions
A105: BDI801 | B105: Strengthened institutional capacity of employers' organisations | C105: 590072 | D105: Output 7.2. Increased capacity of Member States to ensure safe and healthy working conditions
A106: BDI802 | B106: Strengthened institutional capacity of workers' organisations | C106: 590012 | D106: Output 1.2. Increased institutional capacity of workers’ organizations
A107: BEN103 | B107: Les capacités des mandants et des partenaires sont renforcées pour prendre des mesures efficaces de lutte contre la violence et le harcèlement dans le monde du travail | C107: 590063 | D107: Output 6.3. Increased capacity of Member States to develop gender-responsive legislation, policies and measures for a world of work free from violence and harassment
A108: BEN126 | B108: Un cadre formel et perenne de dialogue social est fonctionnel et ses capacités sont renforcées | C108: 590013 | D108: Output 1.3. Increased institutional capacity and resilience of labour administrations
A109: BEN151 | B109: Un socle de Protection sociale est progressivement mis en œuvre à travers l'appui au régime d'Assurance maladie universelle (RAMU) | C109: 590082 | D109: Output 8.2. Increased capacity of Member States to improve governance and sustainability of social protection systems
A110: BEN152 | B110: Les mandants tripartites mettent en oeuvre des politiques et strategies de SSET dans les economies formelle et informelle | C110: 590024 | D110: Output 2.4. Increased capacity Member States to apply sectoral international labour standards, codes of practice and guidelines
A111: BEN152 | B111: Les mandants tripartites mettent en oeuvre des politiques et strategies de SSET dans les economies formelle et informelle | C111: 590072 | D111: Output 7.2. Increased capacity of Member States to ensure safe and healthy working conditions
A112: BEN801 | B112: Strengthened institutional capacity of employers' organisations | C112: 590011 | D112: Output 1.1. Increased institutional capacity of employer and business membership organizations (EBMOs)
A113: BEN802 | B113: Strengthened institutional capacity of workers' organisations | C113: 590012 | D113: Output 1.2. Increased institutional capacity of workers’ organizations
A114: BEN826 | B114: Les mandants tripartites et autres acteurs clés ratifient, appliquent les normes internationales de travail, notamment celles relatives au travail des enfants, et mettent en oeuvre les obligations constitutionnelles y afférant | C114: 590021 | D114: Output 2.1. Increased capacity of Member States to ratify international labour standards
A115: BEN826 | B115: Les mandants tripartites et autres acteurs clés ratifient, appliquent les normes internationales de travail, notamment celles relatives au travail des enfants, et mettent en oeuvre les obligations constitutionnelles y afférant | C115: 590022 | D115: Output 2.2. Increased capacity of Member States to apply international labour standards
A116: BEN826 | B116: Les mandants tripartites et autres acteurs clés ratifient, appliquent les normes internationales de travail, notamment celles relatives au travail des enfants, et mettent en oeuvre les obligations constitutionnelles y afférant | C116: 590023 | D116: Output 2.3. Increased capacity of Member States to engage in a forward-looking international labour standards policy
A117: BFA102 | B117: Les compétences et l'employabilité des jeunes sont renforcées dans les secteurs porteurs en milieu urbain et en milieu rural | C117: 590053 | D117: Output 5.3. Increased capacity of Member States to design and deliver innovative, flexible and inclusive learning options, encompassing work-based learning and quality apprenticeships
A118: BFA105 | B118: Les mandants élaborent et mettent en œuvre une stratégie intégrée de transition de l'économie informelle vers l'économie formelle | C118: 590043 | D118: Output 4.3. Increased capacity of Member States to develop policies, legislation and other measures that are specifically aimed at facilitating the transition of enterprises to formality
A119: BFA106 | B119: Promotion d'un environnement favorable au développement des entreprises durables et à la formalisation des MPME de l'économie informelle au Burkina Faso | C119: 590034 | D119: Output 3.4. Increased capacity of Member States to promote peaceful, stable and resilient societies through decent work
A120: BFA106 | B120: Promotion d'un environnement favorable au développement des entreprises durables et à la formalisation des MPME de l'économie informelle au Burkina Faso | C120: 590041 | D120: Output 4.1. Increased capacity of Member States to create an enabling environment for entrepreneurship and sustainable enterprises
A121: BFA106 | B121: Promotion d'un environnement favorable au développement des entreprises durables et à la formalisation des MPME de l'économie informelle au Burkina Faso | C121: 590042 | D121: Output 4.2. Strengthened capacity of enterprises and their support systems to enhance productivity and sustainability
A122: BFA106 | B122: Promotion d'un environnement favorable au développement des entreprises durables et à la formalisation des MPME de l'économie informelle au Burkina Faso | C122: 590051 | D122: Output 5.1. Increased capacity of Member States to identify current skills mismatches and anticipate future skill needs
A123: BFA126 | B123: Les mandants mettre en œuvre des composantes du socle de protection sociale dans le cadre du Plan national de développement | C123: 590081 | D123: Output 8.1. Increased capacity of Member States to develop new or reformed sustainable national social protection strategies, policies or legal frameworks to extend coverage and enhance benefit adequacy
A124: BFA126 | B124: Les mandants mettre en œuvre des composantes du socle de protection sociale dans le cadre du Plan national de développement | C124: 590082 | D124: Output 8.2. Increased capacity of Member States to improve governance and sustainability of social protection systems
A125: BFA801 | B125: Strengthened institutional capacity of employers' organisations | C125: 590011 | D125: Output 1.1. Increased institutional capacity of employer and business membership organizations (EBMOs)
A126: BFA802 | B126: Strengthened institutional capacity of workers' organisations | C126: 590012 | D126: Output 1.2. Increased institutional capacity of workers’ organizations
A127: BFA826 | B127: Les mandants tripartites et autres acteurs clés ratifient, appliquent les normes internationales de travail et mettent en œuvre les obligations constitutionnelles y afférant | C127: 590021 | D127: Output 2.1. Increased capacity of Member States to ratify international labour standards
A128: BFA826 | B128: Les mandants tripartites et autres acteurs clés ratifient, appliquent les normes internationales de travail et mettent en œuvre les obligations constitutionnelles y afférant | C128: 590022 | D128: Output 2.2. Increased capacity of Member States to apply international labour standards
A129: BFA826 | B129: Les mandants tripartites et autres acteurs clés ratifient, appliquent les normes internationales de travail et mettent en œuvre les obligations constitutionnelles y afférant | C129: 590023 | D129: Output 2.3. Increased capacity of Member States to engage in a forward-looking international labour standards policy
A130: BFA826 | B130: Les mandants tripartites et autres acteurs clés ratifient, appliquent les normes internationales de travail et mettent en œuvre les obligations constitutionnelles y afférant | C130: 590063 | D130: Output 6.3. Increased capacity of Member States to develop gender-responsive legislation, policies and measures for a world of work free from violence and harassment
A131: BFA901 | B131: Le gouvernement en concertation avec les partenaires sociaux adopte des mesures visant à éliminer le travail des enfants en ciblant les pires formes | C131: 590071 | D131: Output 7.1. Increased capacity of Member States to ensure respect for, promote and realize fundamental principles and rights at work
A132: BFA903 | B132: Le renforcement du dialogue social qui intègre les questions de genre | C132: 590014 | D132: Output 1.4. Increased capacity of Member States to improve social dialogue and labour relations laws, processes and institutions
A133: BFA903 | B133: Le renforcement du dialogue social qui intègre les questions de genre | C133: 590073 | D133: Output 7.3. Increased capacity of Member States to set adequate wages and promote decent working time
A134: BFA904 | B134: Le Ministère du travail, en collaboration avec les partenaires sociaux, prend des mesures pour améliorer la conformité des lieux de travail, y compris dans les secteurs de l'économie informelle | C134: 590013 | D134: Output 1.3. Increased institutional capacity and resilience of labour administrations
A135: BFA904 | B135: Le Ministère du travail, en collaboration avec les partenaires sociaux, prend des mesures pour améliorer la conformité des lieux de travail, y compris dans les secteurs de l'économie informelle | C135: 590075 | D135: Output 7.5. Increased capacity of Member States to develop fair and effective labour migration frameworks, institutions and services to protect migrant workers
A136: BGD101 | B136: Employability of young women and men is improved through implementation of the national skills development policy | C136: 590031 | D136: Output 3.1. Increased capacity of Member States to formulate and implement national employment policies in response to the COVID-19 crisis
A137: BGD101 | B137: Employability of young women and men is improved through implementation of the national skills development policy | C137: 590042 | D137: Output 4.2. Strengthened capacity of enterprises and their support systems to enhance productivity and sustainability
A138: BGD101 | B138: Employability of young women and men is improved through implementation of the national skills development policy | C138: 590052 | D138: Output 5.2. Increased capacity of Member States to strengthen skills and lifelong learning policies, governance models and financing system
A139: BGD101 | B139: Employability of young women and men is improved through implementation of the national skills development policy | C139: 590053 | D139: Output 5.3. Increased capacity of Member States to design and deliver innovative, flexible and inclusive learning options, encompassing work-based learning and quality apprenticeships
A140: BGD227 | B140: Capacities of Labour administration and institutions improved. | C140: 590013 | D140: Output 1.3. Increased institutional capacity and resilience of labour administrations
A141: BGD227 | B141: Capacities of Labour administration and institutions improved. | C141: 590063 | D141: Output 6.3. Increased capacity of Member States to develop gender-responsive legislation, policies and measures for a world of work free from violence and harassment
A142: BGD227 | B142: Capacities of Labour administration and institutions improved. | C142: 590072 | D142: Output 7.2. Increased capacity of Member States to ensure safe and healthy working conditions
A143: BGD229 | B143: Capacity of the government, employers' and workers' organizations strengthened to prevent unacceptable forms of work including for indigenous peoples and child labourers | C143: 590064 | D143: Output 6.4. Increased capacity of Member States to strengthen legislation, polices and measures to ensure equal opportunities and treatment in the world of work for persons with disabilities and other persons in vulnerable situations
A144: BGD229 | B144: Capacity of the government, employers' and workers' organizations strengthened to prevent unacceptable forms of work including for indigenous peoples and child labourers | C144: 590071 | D144: Output 7.1. Increased capacity of Member States to ensure respect for, promote and realize fundamental principles and rights at work
A145: BGD230 | B145: Capacity of constituents strengthened to reduce unfair labour practices in enterprises of the RMG sector of the Global Supply Chain | C145: 590014 | D145: Output 1.4. Increased capacity of Member States to improve social dialogue and labour relations laws, processes and institutions
A146: BGD230 | B146: Capacity of constituents strengthened to reduce unfair labour practices in enterprises of the RMG sector of the Global Supply Chain | C146: 590073 | D146: Output 7.3. Increased capacity of Member States to set adequate wages and promote decent working time
A147: BGD301 | B147: Coverage of social protection improved. | C147: 590044 | D147: Output 4.4. Increased capacity of Member States and enterprises to develop policies and measures that promote the alignment of business practices with decent work and a human-centred approach to the future of work
A148: BGD301 | B148: Coverage of social protection improved. | C148: 590081 | D148: Output 8.1. Increased capacity of Member States to develop new or reformed sustainable national social protection strategies, policies or legal frameworks to extend coverage and enhance benefit adequacy
A149: BGD301 | B149: Coverage of social protection improved. | C149: 590083 | D149: Output 8.3. Increased capacity of Member States to integrate social protection in comprehensive policy responses to support and protect workers and employers during their life and work transitions
A150: BGD303 | B150: Effective implementation of policies and regulations on safe, orderly and regular migration | C150: 590075 | D150: Output 7.5. Increased capacity of Member States to develop fair and effective labour migration frameworks, institutions and services to protect migrant workers
A151: BGD801 | B151: Strengthened institutional capacity of employers' organizations | C151: 590011 | D151: Output 1.1. Increased institutional capacity of employer and business membership organizations (EBMOs)
A152: BGD802 | B152: Improved capacity of the workers organizations contributes to effective DWCP implementation at country level. | C152: 590012 | D152: Output 1.2. Increased institutional capacity of workers’ organizations
A153: BGD826 | B153: Strengthened capacity of member States to ratify and apply international labour standards and to fulfil their reporting obligations | C153: 590021 | D153: Output 2.1. Increased capacity of Member States to ratify international labour standards
A154: BGD826 | B154: Strengthened capacity of member States to ratify and apply international labour standards and to fulfil their reporting obligations | C154: 590022 | D154: Output 2.2. Increased capacity of Member States to apply international labour standards
A155: BGD826 | B155: Strengthened capacity of member States to ratify and apply international labour standards and to fulfil their reporting obligations | C155: 590023 | D155: Output 2.3. Increased capacity of Member States to engage in a forward-looking international labour standards policy
A156: BGD826 | B156: Strengthened capacity of member States to ratify and apply international labour standards and to fulfil their reporting obligations | C156: 590024 | D156: Output 2.4. Increased capacity Member States to apply sectoral international labour standards, codes of practice and guidelines
A157: BGR128 | B157: Constituents generate knowledge to promote equitable working conditions and minimum wage | C157: 590075 | D157: Output 7.5. Increased capacity of Member States to develop fair and effective labour migration frameworks, institutions and services to protect migrant workers
A158: BHR102 | B158: Improved governance of labour migration and protection of migrant workers in line with ILS | C158: 590075 | D158: Output 7.5. Increased capacity of Member States to develop fair and effective labour migration frameworks, institutions and services to protect migrant workers
A159: BHR801 | B159: Strengthened institutional capacity of employers' organisations | C159: 590011 | D159: Output 1.1. Increased institutional capacity of employer and business membership organizations (EBMOs)
A160: BHR802 | B160: Strengthened institutional capacity of workers' organisations | C160: 590012 | D160: Output 1.2. Increased institutional capacity of workers’ organizations
A161: BHR826 | B161: Strengthened capacity of member States to ratify and apply international labour standards and to fulfil their reporting obligations | C161: 590022 | D161: Output 2.2. Increased capacity of Member States to apply international labour standards
A162: BHS101 | B162: Strengthened employment services for delivery on employment policy objectives | C162: 590041 | D162: Output 4.1. Increased capacity of Member States to create an enabling environment for entrepreneurship and sustainable enterprises
A163: BHS101 | B163: Strengthened employment services for delivery on employment policy objectives | C163: 590042 | D163: Output 4.2. Strengthened capacity of enterprises and their support systems to enhance productivity and sustainability
A164: BHS103 | B164: Specific action taken to protect women and men from unacceptable forms of work | C164: 590013 | D164: Output 1.3. Increased institutional capacity and resilience of labour administrations
A165: BHS103 | B165: Specific action taken to protect women and men from unacceptable forms of work | C165: 590071 | D165: Output 7.1. Increased capacity of Member States to ensure respect for, promote and realize fundamental principles and rights at work
A166: BHS127 | B166: Initiative skills anticipation | C166: 590053 | D166: Output 5.3. Increased capacity of Member States to design and deliver innovative, flexible and inclusive learning options, encompassing work-based learning and quality apprenticeships
A167: BHS151 | B167: Improved institutional policy or regulatory framework to strengthen governance, financial management or sustainability for the delivery of gender equitable social protection | C167: 590082 | D167: Output 8.2. Increased capacity of Member States to improve governance and sustainability of social protection systems
A168: BHS801 | B168: Strengthened institutional capacity of employers' organisations | C168: 590011 | D168: Output 1.1. Increased institutional capacity of employer and business membership organizations (EBMOs)
A169: BHS802 | B169: Strengthened institutional capacity of workers' organisations | C169: 590012 | D169: Output 1.2. Increased institutional capacity of workers’ organizations
A170: BHS826 | B170: Strengthened capacity of member States to ratify and apply international labour standards and to fulfil their reporting obligations | C170: 590014 | D170: Output 1.4. Increased capacity of Member States to improve social dialogue and labour relations laws, processes and institutions
A171: BHS826 | B171: Strengthened capacity of member States to ratify and apply international labour standards and to fulfil their reporting obligations | C171: 590022 | D171: Output 2.2. Increased capacity of Member States to apply international labour standards
A172: BHS826 | B172: Strengthened capacity of member States to ratify and apply international labour standards and to fulfil their reporting obligations | C172: 590023 | D172: Output 2.3. Increased capacity of Member States to engage in a forward-looking international labour standards policy
A173: BHS826 | B173: Strengthened capacity of member States to ratify and apply international labour standards and to fulfil their reporting obligations | C173: 590063 | D173: Output 6.3. Increased capacity of Member States to develop gender-responsive legislation, policies and measures for a world of work free from violence and harassment
A174: BIH128 | B174: Design and delivery of employment and skills policy improved at central and local levels | C174: 590031 | D174: Output 3.1. Increased capacity of Member States to formulate and implement national employment policies in response to the COVID-19 crisis
A175: BIH128 | B175: Design and delivery of employment and skills policy improved at central and local levels | C175: 590032 | D175: Output 3.2. Increased capacity of Member States to formulate and implement policies and strategies for creating decent work in the rural economy
A176: BIH128 | B176: Design and delivery of employment and skills policy improved at central and local levels | C176: 590051 | D176: Output 5.1. Increased capacity of Member States to identify current skills mismatches and anticipate future skill needs
A177: BIH128 | B177: Design and delivery of employment and skills policy improved at central and local levels | C177: 590054 | D177: Output 5.4. Increased capacity of Member States to support digital transitions of skills development systems and develop digital skills
A178: BIH130 | B178: Enabling environment for sustainable enterprise and SME development is promoted | C178: 590042 | D178: Output 4.2. Strengthened capacity of enterprises and their support systems to enhance productivity and sustainability
A179: BIH130 | B179: Enabling environment for sustainable enterprise and SME development is promoted | C179: 590044 | D179: Output 4.4. Increased capacity of Member States and enterprises to develop policies and measures that promote the alignment of business practices with decent work and a human-centred approach to the future of work
A180: BIH151 | B180: Social protection is extended to workers in the informal economy | C180: 590083 | D180: Output 8.3. Increased capacity of Member States to integrate social protection in comprehensive policy responses to support and protect workers and employers during their life and work transitions
A181: BIH153 | B181: The effectiveness of the labour inspection and occupational safety and health system and of social dialogue institutions is strengthened | C181: 590013 | D181: Output 1.3. Increased institutional capacity and resilience of labour administrations
A182: BIH153 | B182: The effectiveness of the labour inspection and occupational safety and health system and of social dialogue institutions is strengthened | C182: 590072 | D182: Output 7.2. Increased capacity of Member States to ensure safe and healthy working conditions
A183: BIH154 | B183: National law and practice improved in accordance with C.190 and R. 206 | C183: 590063 | D183: Output 6.3. Increased capacity of Member States to develop gender-responsive legislation, policies and measures for a world of work free from violence and harassment
A184: BIH801 | B184: Strengthened institutional capacity of employers' organisations | C184: 590011 | D184: Output 1.1. Increased institutional capacity of employer and business membership organizations (EBMOs)
A185: BIH802 | B185: Strengthened institutional capacity of workers' organisations | C185: 590012 | D185: Output 1.2. Increased institutional capacity of workers’ organizations
A186: BLR801 | B186: Strengthened institutional capacity of employers' organisations | C186: 590011 | D186: Output 1.1. Increased institutional capacity of employer and business membership organizations (EBMOs)
A187: BLR802 | B187: Workers have strong, independent, democratic and representative organizations | C187: 590012 | D187: Output 1.2. Increased institutional capacity of workers’ organizations
A188: BLR826 | B188: Strengthened capacity of member States to ratify and apply international labour standards and to fulfil their reporting obligations | C188: 590021 | D188: Output 2.1. Increased capacity of Member States to ratify international labour standards
A189: BLR826 | B189: Strengthened capacity of member States to ratify and apply international labour standards and to fulfil their reporting obligations | C189: 590022 | D189: Output 2.2. Increased capacity of Member States to apply international labour standards
A190: BLZ102 | B190: Policies and programmes implemented to promote improved safety and health at work | C190: 590013 | D190: Output 1.3. Increased institutional capacity and resilience of labour administrations
A191: BLZ126 | B191: Improved comprehensive employment training and policies targeting youth | C191: 590053 | D191: Output 5.3. Increased capacity of Member States to design and deliver innovative, flexible and inclusive learning options, encompassing work-based learning and quality apprenticeships
A192: BLZ153 | B192: Implemented policies, strategies and/or innovative interventions to promote productive employment and decent work in the rural economy of Belize | C192: 590032 | D192: Output 3.2. Increased capacity of Member States to formulate and implement policies and strategies for creating decent work in the rural economy
A193: BLZ176 | B193: A plan of action is designed or improved, implemented and monitored to eradicate child labour in Belize | C193: 590071 | D193: Output 7.1. Increased capacity of Member States to ensure respect for, promote and realize fundamental principles and rights at work
A194: BLZ201 | B194: Improved institutional policy or regulatory framework to strengthen governance, financial management or sustainability for the delivery of gender equitable social protection | C194: 590082 | D194: Output 8.2. Increased capacity of Member States to improve governance and sustainability of social protection systems
A195: BLZ801 | B195: Strengthened institutional capacity of employers' organisations | C195: 590011 | D195: Output 1.1. Increased institutional capacity of employer and business membership organizations (EBMOs)
A196: BLZ802 | B196: Strengthened institutional capacity of workers' organisations | C196: 590012 | D196: Output 1.2. Increased institutional capacity of workers’ organizations
A197: BLZ828 | B197: Belize has adopted or modified legislation in conformity with international labour standards | C197: 590014 | D197: Output 1.4. Increased capacity of Member States to improve social dialogue and labour relations laws, processes and institutions
A198: BLZ828 | B198: Belize has adopted or modified legislation in conformity with international labour standards | C198: 590023 | D198: Output 2.3. Increased capacity of Member States to engage in a forward-looking international labour standards policy
A199: BOL109 | B199: Políticas, planes, medidas y NITs implementadas para promover el empleo productivo y el trabajo decente en la economía rural | C199: 590032 | D199: Output 3.2. Increased capacity of Member States to formulate and implement policies and strategies for creating decent work in the rural economy
A200: BOL111 | B200: Micro, pequeñas empresas y cooperativas fortalecidas para la adopción de prácticas responsables y sostenibles para la creación de más y mejores empleos en Bolivia | C200: 590042 | D200: Output 4.2. Strengthened capacity of enterprises and their support systems to enhance productivity and sustainability
... 2340 more rows

Sheet SQL - SF
A1: SF Values
A3: select sf_ind.flex_value as "SF Segment"
A4: ,sf_ind.description as "SF Description"
A5: from apps.xxsm_flex_values_tl sf_ind
A6: where 1=1
A7: and sf_ind.context = 'IP22'
A8: and sf_ind.flex_value_set_name = 'ILO_AFF_SF'
A9: and length(sf_ind.flex_value) = '6'
A10: and upper(sf_ind.description) like 'OUTPUT%'

Sheet SQL - CPO (hidden)
A1: CPO Values
A2: select cpo.flex_value as "CPO Value"
A3: ,REPLACE(REPLACE(REPLACE(REPLACE(cpo.description
A4: ,CHR(13), ' '),CHR(10),''),CHR(9),''),' ','') as "CPO Description"
A5: -- ,c.code
A6: -- ,xfvt1.description
A7: from xxsm.xxsm_flex_value_link xfvl
A8: ,xxsm.xxsm_context cont
A9: ,apps.fnd_lookup_values flv
A10: ,xxsm.xxsm_flex_values_tl xfvt
A11: ,xxsm.xxsm_outputs_target_status a
A12: ,xxsm.xxsm_outputs_target b
A13: ,xxsm.xxsm_outputs c
A14: ,xxsm.xxsm_flex_values_tl xfvt1
A15: ,(select a.flex_value flex_value
A16: ,a.description description
A17: from apps.fnd_flex_values_vl a
A18: where 1=1
A19: and flex_value_set_id = (select flex_value_set_id
A20: from apps.fnd_flex_value_sets b
A21: where b.flex_value_set_name='ILO_AFF_CP')
A22: and length(flex_value)=6
A23: and a.enabled_flag = 'Y'
A24: and a.attribute5 = '40'
A25: and substr(flex_value,4,3) != '000'
A26: and flex_value != '000000'
A27: -- and flex_value like 'EGY828%'
A28: and (translate(substr(flex_value,1,3),
A29: 'ABCDEFGHIJKLMNOPQRSTUVWXYZ','##########################')='###'
A30: or substr(flex_value,1,3)='000')
A31: and exists (select 1
A32: from apps.xxsm_flex_values_tl xfvt
A33: ,apps.fnd_lookup_values flv
A34: where 1=1
A35: and xfvt.flex_value = a.flex_value
A36: and xfvt.flex_value_set_name ='ILO_AFF_CP'
A37: and xfvt.context=flv.lookup_code
A38: and flv.enabled_flag = 'Y'
A39: and flv.lookup_type='XXILO_OGA_CONTEXT'
A40: )
A41: order by 1) cpo
A42: where 1=1
A43: and xfvl.context = cont.context
A44: and cont.context = flv.lookup_code
A45: and xfvl.link_flex_value_set_name = 'ILO_AFF_SF'
A46: and flv.lookup_type = 'XXILO_OGA_CONTEXT'
A47: and xfvl.flex_value_set_name = 'ILO_AFF_CP'
A48: and xfvl.flex_value in cpo.flex_value--=:$FLEX$.ILO_OGA_CP
A49: and flv.enabled_flag = 'Y'
A50: and xfvt.context = flv.lookup_code
A51: and xfvt.flex_value = xfvl.link_flex_value
A52: and b.segment4 = xfvl.flex_value
A53: and b.segment3 = xfvl.link_flex_value
A54: and b.context = xfvt.context
A55: and a.context = xfvt.context
A56: and a.target_id = b.target_id
A57: and b.output_id = c.output_id
A58: and c.context = b.context
A59: and c.code = xfvt1.flex_value
A60: and xfvt1.context = b.context
A61: group by cpo.flex_value --as "CPO Value"
A62: ,REPLACE(REPLACE(REPLACE(REPLACE(cpo.description
A63: ,CHR(13), ' '),CHR(10),''),CHR(9),''),' ','') --as "CPO Description"
A64: =--order by a.linkage desc -> 

Sheet SQL - SF & CPO
A1: SF & CPO Values
A2: select cpo.flex_value as "CPO Value"
A3: ,REPLACE(REPLACE(REPLACE(REPLACE(REPLACE(cpo.description
A4: ,CHR(13), ' '),CHR(10),''),CHR(9),''),CHR(34),''),' ','') as "CPO Description"
A5: ,c.code as "SF Value"
A6: ,REPLACE(REPLACE(REPLACE(REPLACE(REPLACE(xfvt1.description
A7: ,CHR(13), ' '),CHR(10),''),CHR(9),''),CHR(34),''),' ','') as "SF Description"
A8: from xxsm.xxsm_flex_value_link xfvl
A9: ,xxsm.xxsm_context cont
A10: ,apps.fnd_lookup_values flv
A11: ,xxsm.xxsm_flex_values_tl xfvt
A12: ,xxsm.xxsm_outputs_target_status a
A13: ,xxsm.xxsm_outputs_target b
A14: ,xxsm.xxsm_outputs c
A15: ,xxsm.xxsm_flex_values_tl xfvt1
A16: ,(select a.flex_value flex_value
A17: ,a.description description
A18: from apps.fnd_flex_values_vl a
A19: where 1=1
A20: and flex_value_set_id = (select flex_value_set_id
A21: from apps.fnd_flex_value_sets b
A22: where b.flex_value_set_name='ILO_AFF_CP')
A23: and length(flex_value)=6
A24: and a.enabled_flag = 'Y'
A25: and a.attribute5 = '40'
A26: and substr(flex_value,4,3) != '000'
A27: and flex_value != '000000'
A28: -- and flex_value like 'PAK%'
A29: and (translate(substr(flex_value,1,3),
A30: 'ABCDEFGHIJKLMNOPQRSTUVWXYZ','##########################')='###'
A31: or substr(flex_value,1,3)='000')
A32: and exists (select 1
A33: from apps.xxsm_flex_values_tl xfvt
A34: ,apps.fnd_lookup_values flv
A35: where 1=1
A36: and xfvt.flex_value = a.flex_value
A37: and xfvt.flex_value_set_name ='ILO_AFF_CP'
A38: and xfvt.context=flv.lookup_code
A39: and flv.enabled_flag = 'Y'
A40: and flv.lookup_type='XXILO_OGA_CONTEXT'
A41: )
A42: order by 1) cpo
A43: where 1=1
A44: and xfvl.context = cont.context
A45: and cont.context = flv.lookup_code
A46: and xfvl.link_flex_value_set_name = 'ILO_AFF_SF'
A47: and flv.lookup_type = 'XXILO_OGA_CONTEXT'
A48: and xfvl.flex_value_set_name = 'ILO_AFF_CP'
A49: and xfvl.flex_value in cpo.flex_value--=:$FLEX$.ILO_OGA_CP
A50: and flv.enabled_flag = 'Y'
A51: and xfvt.context = flv.lookup_code
A52: and xfvt.flex_value = xfvl.link_flex_value
A53: and b.segment4 = xfvl.flex_value
A54: and b.segment3 = xfvl.link_flex_value
A55: and b.context = xfvt.context
A56: and a.context = xfvt.context
A57: and a.target_id = b.target_id
A58: and b.output_id = c.output_id
A59: and c.context = b.context
A60: and c.code = xfvt1.flex_value
A61: and xfvt1.context = b.context
A62: group by cpo.flex_value --as "CPO Value"
A63: ,REPLACE(REPLACE(REPLACE(REPLACE(REPLACE(cpo.description
A64: ,CHR(13), ' '),CHR(10),''),CHR(9),''),CHR(34),''),' ','') --as "CPO Description"
A65: ,c.code --as "SF Value"
A66: ,REPLACE(REPLACE(REPLACE(REPLACE(REPLACE(xfvt1.description
A67: ,CHR(13), ' '),CHR(10),''),CHR(9),''),CHR(34),''),' ','') --as "SF Description"
A68: order by cpo.flex_value
A69: ,c.code
